{"text_format":"3","workbook":"xlsx","n_sheets":12,"sheets":["JAN","FEB","MAR","APR","MAY","JUN","JUL","AUG","SEP","OCT","NOV","DEC"],"not_rendered":{"defined_names":40},"read":"whole","date_system":"1900"}

{"sheet":"JAN","index":0,"n_rows":20,"n_cols":9,"rows_kept":20,"merged":[[16,2,17,2],[16,3,17,3],[17,4,19,8]]}
[null,"JAN","SUN",{"$f":"UPPER(TEXT(D3,\"aaa\"))","v":"MON"},"TUE","WED","THU","FRI","SAT"]
[null,{"$f":"YEAR(TODAY())","v":2018}]
[null,null,{"$f":"DaysAndWeeks+DATE(CalendarYear,1,1)-WEEKDAY(DATE(CalendarYear,1,1),(WeekStart=\"MON\")+1)+1","v":"2017-12-31"},"2018-01-01","2018-01-02","2018-01-03","2018-01-04","2018-01-05","2018-01-06"]
[null,null,{"$f":"IF(DAY(CalendarDay)=1,CONCATENATE(\"Week \",WEEKNUM(CalendarDay),\"/Day \",CalendarDay-DATE(YEAR(CalendarDay),1,0)),CONCATENATE(\"Day \",CalendarDay-DATE(YEAR(CalendarDay),1,0)))","v":"Day 365"},"Week 1/Day 1","Day 2","Day 3","Day 4","Day 5","Day 6"]
[]
[null,null,{"$f":"DaysAndWeeks+DATE(CalendarYear,1,1)-WEEKDAY(DATE(CalendarYear,1,1),(WeekStart=\"MON\")+1)+8","v":"2018-01-07"},"2018-01-08","2018-01-09","2018-01-10","2018-01-11","2018-01-12","2018-01-13"]
[null,null,{"$f":"IF(WEEKDAY(CalendarDay)=WeekStartValue,CONCATENATE(\"Week \",WEEKNUM(CalendarDay),\"/Day \",CalendarDay-DATE(YEAR(CalendarDay),1,0)),CONCATENATE(\"Day \",CalendarDay-DATE(YEAR(CalendarDay),1,0)))","v":"Week 2/Day 7"},{"$f":"IF(WEEKDAY(CalendarDay)=WeekStartValue,CONCATENATE(\"Week \",WEEKNUM(CalendarDay),\"/Day \",CalendarDay-DATE(YEAR(CalendarDay),1,0)),CONCATENATE(\"Day \",CalendarDay-DATE(YEAR(CalendarDay),1,0)))","v":"Day 8"},{"$f":"IF(WEEKDAY(CalendarDay)=WeekStartValue,CONCATENATE(\"Week \",WEEKNUM(CalendarDay),\"/Day \",CalendarDay-DATE(YEAR(CalendarDay),1,0)),CONCATENATE(\"Day \",CalendarDay-DATE(YEAR(CalendarDay),1,0)))","v":"Day 9"},{"$f":"IF(WEEKDAY(CalendarDay)=WeekStartValue,CONCATENATE(\"Week \",WEEKNUM(CalendarDay),\"/Day \",CalendarDay-DATE(YEAR(CalendarDay),1,0)),CONCATENATE(\"Day \",CalendarDay-DATE(YEAR(CalendarDay),1,0)))","v":"Day 10"},{"$f":"IF(WEEKDAY(CalendarDay)=WeekStartValue,CONCATENATE(\"Week \",WEEKNUM(CalendarDay),\"/Day \",CalendarDay-DATE(YEAR(CalendarDay),1,0)),CONCATENATE(\"Day \",CalendarDay-DATE(YEAR(CalendarDay),1,0)))","v":"Day 11"},{"$f":"IF(WEEKDAY(CalendarDay)=WeekStartValue,CONCATENATE(\"Week \",WEEKNUM(CalendarDay),\"/Day \",CalendarDay-DATE(YEAR(CalendarDay),1,0)),CONCATENATE(\"Day \",CalendarDay-DATE(YEAR(CalendarDay),1,0)))","v":"Day 12"},{"$f":"IF(WEEKDAY(CalendarDay)=WeekStartValue,CONCATENATE(\"Week \",WEEKNUM(CalendarDay),\"/Day \",CalendarDay-DATE(YEAR(CalendarDay),1,0)),CONCATENATE(\"Day \",CalendarDay-DATE(YEAR(CalendarDay),1,0)))","v":"Day 13"}]
[]
[null,null,{"$f":"DaysAndWeeks+DATE(CalendarYear,1,1)-WEEKDAY(DATE(CalendarYear,1,1),(WeekStart=\"MON\")+1)+15","v":"2018-01-14"},"2018-01-15","2018-01-16","2018-01-17","2018-01-18","2018-01-19","2018-01-20"]
[null,null,{"$f":"IF(WEEKDAY(CalendarDay)=WeekStartValue,CONCATENATE(\"Week \",WEEKNUM(CalendarDay),\"/Day \",CalendarDay-DATE(YEAR(CalendarDay),1,0)),CONCATENATE(\"Day \",CalendarDay-DATE(YEAR(CalendarDay),1,0)))","v":"Week 3/Day 14"},{"$f":"IF(WEEKDAY(CalendarDay)=WeekStartValue,CONCATENATE(\"Week \",WEEKNUM(CalendarDay),\"/Day \",CalendarDay-DATE(YEAR(CalendarDay),1,0)),CONCATENATE(\"Day \",CalendarDay-DATE(YEAR(CalendarDay),1,0)))","v":"Day 15"},{"$f":"IF(WEEKDAY(CalendarDay)=WeekStartValue,CONCATENATE(\"Week \",WEEKNUM(CalendarDay),\"/Day \",CalendarDay-DATE(YEAR(CalendarDay),1,0)),CONCATENATE(\"Day \",CalendarDay-DATE(YEAR(CalendarDay),1,0)))","v":"Day 16"},{"$f":"IF(WEEKDAY(CalendarDay)=WeekStartValue,CONCATENATE(\"Week \",WEEKNUM(CalendarDay),\"/Day \",CalendarDay-DATE(YEAR(CalendarDay),1,0)),CONCATENATE(\"Day \",CalendarDay-DATE(YEAR(CalendarDay),1,0)))","v":"Day 17"},{"$f":"IF(WEEKDAY(CalendarDay)=WeekStartValue,CONCATENATE(\"Week \",WEEKNUM(CalendarDay),\"/Day \",CalendarDay-DATE(YEAR(CalendarDay),1,0)),CONCATENATE(\"Day \",CalendarDay-DATE(YEAR(CalendarDay),1,0)))","v":"Day 18"},{"$f":"IF(WEEKDAY(CalendarDay)=WeekStartValue,CONCATENATE(\"Week \",WEEKNUM(CalendarDay),\"/Day \",CalendarDay-DATE(YEAR(CalendarDay),1,0)),CONCATENATE(\"Day \",CalendarDay-DATE(YEAR(CalendarDay),1,0)))","v":"Day 19"},{"$f":"IF(WEEKDAY(CalendarDay)=WeekStartValue,CONCATENATE(\"Week \",WEEKNUM(CalendarDay),\"/Day \",CalendarDay-DATE(YEAR(CalendarDay),1,0)),CONCATENATE(\"Day \",CalendarDay-DATE(YEAR(CalendarDay),1,0)))","v":"Day 20"}]
[]
[null,null,{"$f":"DaysAndWeeks+DATE(CalendarYear,1,1)-WEEKDAY(DATE(CalendarYear,1,1),(WeekStart=\"MON\")+1)+22","v":"2018-01-21"},"2018-01-22","2018-01-23","2018-01-24","2018-01-25","2018-01-26","2018-01-27"]
[null,null,{"$f":"IF(WEEKDAY(CalendarDay)=WeekStartValue,CONCATENATE(\"Week \",WEEKNUM(CalendarDay),\"/Day \",CalendarDay-DATE(YEAR(CalendarDay),1,0)),CONCATENATE(\"Day \",CalendarDay-DATE(YEAR(CalendarDay),1,0)))","v":"Week 4/Day 21"},{"$f":"IF(WEEKDAY(CalendarDay)=WeekStartValue,CONCATENATE(\"Week \",WEEKNUM(CalendarDay),\"/Day \",CalendarDay-DATE(YEAR(CalendarDay),1,0)),CONCATENATE(\"Day \",CalendarDay-DATE(YEAR(CalendarDay),1,0)))","v":"Day 22"},{"$f":"IF(WEEKDAY(CalendarDay)=WeekStartValue,CONCATENATE(\"Week \",WEEKNUM(CalendarDay),\"/Day \",CalendarDay-DATE(YEAR(CalendarDay),1,0)),CONCATENATE(\"Day \",CalendarDay-DATE(YEAR(CalendarDay),1,0)))","v":"Day 23"},{"$f":"IF(WEEKDAY(CalendarDay)=WeekStartValue,CONCATENATE(\"Week \",WEEKNUM(CalendarDay),\"/Day \",CalendarDay-DATE(YEAR(CalendarDay),1,0)),CONCATENATE(\"Day \",CalendarDay-DATE(YEAR(CalendarDay),1,0)))","v":"Day 24"},{"$f":"IF(WEEKDAY(CalendarDay)=WeekStartValue,CONCATENATE(\"Week \",WEEKNUM(CalendarDay),\"/Day \",CalendarDay-DATE(YEAR(CalendarDay),1,0)),CONCATENATE(\"Day \",CalendarDay-DATE(YEAR(CalendarDay),1,0)))","v":"Day 25"},{"$f":"IF(WEEKDAY(CalendarDay)=WeekStartValue,CONCATENATE(\"Week \",WEEKNUM(CalendarDay),\"/Day \",CalendarDay-DATE(YEAR(CalendarDay),1,0)),CONCATENATE(\"Day \",CalendarDay-DATE(YEAR(CalendarDay),1,0)))","v":"Day 26"},{"$f":"IF(WEEKDAY(CalendarDay)=WeekStartValue,CONCATENATE(\"Week \",WEEKNUM(CalendarDay),\"/Day \",CalendarDay-DATE(YEAR(CalendarDay),1,0)),CONCATENATE(\"Day \",CalendarDay-DATE(YEAR(CalendarDay),1,0)))","v":"Day 27"}]
[]
[null,null,{"$f":"DaysAndWeeks+DATE(CalendarYear,1,1)-WEEKDAY(DATE(CalendarYear,1,1),(WeekStart=\"MON\")+1)+29","v":"2018-01-28"},"2018-01-29","2018-01-30","2018-01-31","2018-02-01","2018-02-02","2018-02-03"]
[null,null,{"$f":"IF(WEEKDAY(CalendarDay)=WeekStartValue,CONCATENATE(\"Week \",WEEKNUM(CalendarDay),\"/Day \",CalendarDay-DATE(YEAR(CalendarDay),1,0)),CONCATENATE(\"Day \",CalendarDay-DATE(YEAR(CalendarDay),1,0)))","v":"Week 5/Day 28"},{"$f":"IF(WEEKDAY(CalendarDay)=WeekStartValue,CONCATENATE(\"Week \",WEEKNUM(CalendarDay),\"/Day \",CalendarDay-DATE(YEAR(CalendarDay),1,0)),CONCATENATE(\"Day \",CalendarDay-DATE(YEAR(CalendarDay),1,0)))","v":"Day 29"},{"$f":"IF(WEEKDAY(CalendarDay)=WeekStartValue,CONCATENATE(\"Week \",WEEKNUM(CalendarDay),\"/Day \",CalendarDay-DATE(YEAR(CalendarDay),1,0)),CONCATENATE(\"Day \",CalendarDay-DATE(YEAR(CalendarDay),1,0)))","v":"Day 30"},{"$f":"IF(WEEKDAY(CalendarDay)=WeekStartValue,CONCATENATE(\"Week \",WEEKNUM(CalendarDay),\"/Day \",CalendarDay-DATE(YEAR(CalendarDay),1,0)),CONCATENATE(\"Day \",CalendarDay-DATE(YEAR(CalendarDay),1,0)))","v":"Day 31"},{"$f":"IF(WEEKDAY(CalendarDay)=WeekStartValue,CONCATENATE(\"Week \",WEEKNUM(CalendarDay),\"/Day \",CalendarDay-DATE(YEAR(CalendarDay),1,0)),CONCATENATE(\"Day \",CalendarDay-DATE(YEAR(CalendarDay),1,0)))","v":"Day 32"},{"$f":"IF(WEEKDAY(CalendarDay)=WeekStartValue,CONCATENATE(\"Week \",WEEKNUM(CalendarDay),\"/Day \",CalendarDay-DATE(YEAR(CalendarDay),1,0)),CONCATENATE(\"Day \",CalendarDay-DATE(YEAR(CalendarDay),1,0)))","v":"Day 33"},{"$f":"IF(WEEKDAY(CalendarDay)=WeekStartValue,CONCATENATE(\"Week \",WEEKNUM(CalendarDay),\"/Day \",CalendarDay-DATE(YEAR(CalendarDay),1,0)),CONCATENATE(\"Day \",CalendarDay-DATE(YEAR(CalendarDay),1,0)))","v":"Day 34"}]
[{"$nulls":4},"NOTES"]
[]
[null,null,{"$f":"DaysAndWeeks+DATE(CalendarYear,1,1)-WEEKDAY(DATE(CalendarYear,1,1),(WeekStart=\"MON\")+1)+36","v":"2018-02-04"},"2018-02-05"]
[null,null,{"$f":"IF(WEEKDAY(CalendarDay)=WeekStartValue,CONCATENATE(\"Week \",WEEKNUM(CalendarDay),\"/Day \",CalendarDay-DATE(YEAR(CalendarDay),1,0)),CONCATENATE(\"Day \",CalendarDay-DATE(YEAR(CalendarDay),1,0)))","v":"Week 6/Day 35"},{"$f":"IF(WEEKDAY(CalendarDay)=WeekStartValue,CONCATENATE(\"Week \",WEEKNUM(CalendarDay),\"/Day \",CalendarDay-DATE(YEAR(CalendarDay),1,0)),CONCATENATE(\"Day \",CalendarDay-DATE(YEAR(CalendarDay),1,0)))","v":"Day 36"}]

{"sheet":"FEB","index":1,"n_rows":20,"n_cols":9,"rows_kept":20,"merged":[[16,2,17,2],[17,4,19,8]]}
[null,"FEB",{"$f":"UPPER(TEXT(WeekStart,\"ddd\"))","v":"SUN"},{"$f":"UPPER(TEXT(D3,\"aaa\"))","v":"MON"},"TUE","WED","THU","FRI","SAT"]
[null,{"$f":"CalendarYear","v":2018}]
[null,null,{"$f":"DaysAndWeeks+DATE(CalendarYear,2,1)-WEEKDAY(DATE(CalendarYear,2,1),(WeekStart=\"MON\")+1)+1","v":"2018-01-28"},"2018-01-29","2018-01-30","2018-01-31","2018-02-01","2018-02-02","2018-02-03"]
[null,null,{"$f":"IF(DAY(CalendarDay)=1,CONCATENATE(\"Week \",WEEKNUM(CalendarDay),\"/Day \",CalendarDay-DATE(YEAR(CalendarDay),1,0)),CONCATENATE(\"Day \",CalendarDay-DATE(YEAR(CalendarDay),1,0)))","v":"Day 28"},"Day 29","Day 30","Day 31","Week 5/Day 32","Day 33","Day 34"]
[]
[null,null,{"$f":"DaysAndWeeks+DATE(CalendarYear,2,1)-WEEKDAY(DATE(CalendarYear,2,1),(WeekStart=\"MON\")+1)+8","v":"2018-02-04"},"2018-02-05","2018-02-06","2018-02-07","2018-02-08","2018-02-09","2018-02-10"]
[null,null,{"$f":"IF(WEEKDAY(CalendarDay)=WeekStartValue,CONCATENATE(\"Week \",WEEKNUM(CalendarDay),\"/Day \",CalendarDay-DATE(YEAR(CalendarDay),1,0)),CONCATENATE(\"Day \",CalendarDay-DATE(YEAR(CalendarDay),1,0)))","v":"Week 6/Day 35"},{"$f":"IF(WEEKDAY(CalendarDay)=WeekStartValue,CONCATENATE(\"Week \",WEEKNUM(CalendarDay),\"/Day \",CalendarDay-DATE(YEAR(CalendarDay),1,0)),CONCATENATE(\"Day \",CalendarDay-DATE(YEAR(CalendarDay),1,0)))","v":"Day 36"},{"$f":"IF(WEEKDAY(CalendarDay)=WeekStartValue,CONCATENATE(\"Week \",WEEKNUM(CalendarDay),\"/Day \",CalendarDay-DATE(YEAR(CalendarDay),1,0)),CONCATENATE(\"Day \",CalendarDay-DATE(YEAR(CalendarDay),1,0)))","v":"Day 37"},{"$f":"IF(WEEKDAY(CalendarDay)=WeekStartValue,CONCATENATE(\"Week \",WEEKNUM(CalendarDay),\"/Day \",CalendarDay-DATE(YEAR(CalendarDay),1,0)),CONCATENATE(\"Day \",CalendarDay-DATE(YEAR(CalendarDay),1,0)))","v":"Day 38"},{"$f":"IF(WEEKDAY(CalendarDay)=WeekStartValue,CONCATENATE(\"Week \",WEEKNUM(CalendarDay),\"/Day \",CalendarDay-DATE(YEAR(CalendarDay),1,0)),CONCATENATE(\"Day \",CalendarDay-DATE(YEAR(CalendarDay),1,0)))","v":"Day 39"},{"$f":"IF(WEEKDAY(CalendarDay)=WeekStartValue,CONCATENATE(\"Week \",WEEKNUM(CalendarDay),\"/Day \",CalendarDay-DATE(YEAR(CalendarDay),1,0)),CONCATENATE(\"Day \",CalendarDay-DATE(YEAR(CalendarDay),1,0)))","v":"Day 40"},{"$f":"IF(WEEKDAY(CalendarDay)=WeekStartValue,CONCATENATE(\"Week \",WEEKNUM(CalendarDay),\"/Day \",CalendarDay-DATE(YEAR(CalendarDay),1,0)),CONCATENATE(\"Day \",CalendarDay-DATE(YEAR(CalendarDay),1,0)))","v":"Day 41"}]
[]
[null,null,{"$f":"DaysAndWeeks+DATE(CalendarYear,2,1)-WEEKDAY(DATE(CalendarYear,2,1),(WeekStart=\"MON\")+1)+15","v":"2018-02-11"},"2018-02-12","2018-02-13","2018-02-14","2018-02-15","2018-02-16","2018-02-17"]
[null,null,{"$f":"IF(WEEKDAY(CalendarDay)=WeekStartValue,CONCATENATE(\"Week \",WEEKNUM(CalendarDay),\"/Day \",CalendarDay-DATE(YEAR(CalendarDay),1,0)),CONCATENATE(\"Day \",CalendarDay-DATE(YEAR(CalendarDay),1,0)))","v":"Week 7/Day 42"},{"$f":"IF(WEEKDAY(CalendarDay)=WeekStartValue,CONCATENATE(\"Week \",WEEKNUM(CalendarDay),\"/Day \",CalendarDay-DATE(YEAR(CalendarDay),1,0)),CONCATENATE(\"Day \",CalendarDay-DATE(YEAR(CalendarDay),1,0)))","v":"Day 43"},{"$f":"IF(WEEKDAY(CalendarDay)=WeekStartValue,CONCATENATE(\"Week \",WEEKNUM(CalendarDay),\"/Day \",CalendarDay-DATE(YEAR(CalendarDay),1,0)),CONCATENATE(\"Day \",CalendarDay-DATE(YEAR(CalendarDay),1,0)))","v":"Day 44"},{"$f":"IF(WEEKDAY(CalendarDay)=WeekStartValue,CONCATENATE(\"Week \",WEEKNUM(CalendarDay),\"/Day \",CalendarDay-DATE(YEAR(CalendarDay),1,0)),CONCATENATE(\"Day \",CalendarDay-DATE(YEAR(CalendarDay),1,0)))","v":"Day 45"},{"$f":"IF(WEEKDAY(CalendarDay)=WeekStartValue,CONCATENATE(\"Week \",WEEKNUM(CalendarDay),\"/Day \",CalendarDay-DATE(YEAR(CalendarDay),1,0)),CONCATENATE(\"Day \",CalendarDay-DATE(YEAR(CalendarDay),1,0)))","v":"Day 46"},{"$f":"IF(WEEKDAY(CalendarDay)=WeekStartValue,CONCATENATE(\"Week \",WEEKNUM(CalendarDay),\"/Day \",CalendarDay-DATE(YEAR(CalendarDay),1,0)),CONCATENATE(\"Day \",CalendarDay-DATE(YEAR(CalendarDay),1,0)))","v":"Day 47"},{"$f":"IF(WEEKDAY(CalendarDay)=WeekStartValue,CONCATENATE(\"Week \",WEEKNUM(CalendarDay),\"/Day \",CalendarDay-DATE(YEAR(CalendarDay),1,0)),CONCATENATE(\"Day \",CalendarDay-DATE(YEAR(CalendarDay),1,0)))","v":"Day 48"}]
[]
[null,null,{"$f":"DaysAndWeeks+DATE(CalendarYear,2,1)-WEEKDAY(DATE(CalendarYear,2,1),(WeekStart=\"MON\")+1)+22","v":"2018-02-18"},"2018-02-19","2018-02-20","2018-02-21","2018-02-22","2018-02-23","2018-02-24"]
[null,null,{"$f":"IF(WEEKDAY(CalendarDay)=WeekStartValue,CONCATENATE(\"Week \",WEEKNUM(CalendarDay),\"/Day \",CalendarDay-DATE(YEAR(CalendarDay),1,0)),CONCATENATE(\"Day \",CalendarDay-DATE(YEAR(CalendarDay),1,0)))","v":"Week 8/Day 49"},{"$f":"IF(WEEKDAY(CalendarDay)=WeekStartValue,CONCATENATE(\"Week \",WEEKNUM(CalendarDay),\"/Day \",CalendarDay-DATE(YEAR(CalendarDay),1,0)),CONCATENATE(\"Day \",CalendarDay-DATE(YEAR(CalendarDay),1,0)))","v":"Day 50"},{"$f":"IF(WEEKDAY(CalendarDay)=WeekStartValue,CONCATENATE(\"Week \",WEEKNUM(CalendarDay),\"/Day \",CalendarDay-DATE(YEAR(CalendarDay),1,0)),CONCATENATE(\"Day \",CalendarDay-DATE(YEAR(CalendarDay),1,0)))","v":"Day 51"},{"$f":"IF(WEEKDAY(CalendarDay)=WeekStartValue,CONCATENATE(\"Week \",WEEKNUM(CalendarDay),\"/Day \",CalendarDay-DATE(YEAR(CalendarDay),1,0)),CONCATENATE(\"Day \",CalendarDay-DATE(YEAR(CalendarDay),1,0)))","v":"Day 52"},{"$f":"IF(WEEKDAY(CalendarDay)=WeekStartValue,CONCATENATE(\"Week \",WEEKNUM(CalendarDay),\"/Day \",CalendarDay-DATE(YEAR(CalendarDay),1,0)),CONCATENATE(\"Day \",CalendarDay-DATE(YEAR(CalendarDay),1,0)))","v":"Day 53"},{"$f":"IF(WEEKDAY(CalendarDay)=WeekStartValue,CONCATENATE(\"Week \",WEEKNUM(CalendarDay),\"/Day \",CalendarDay-DATE(YEAR(CalendarDay),1,0)),CONCATENATE(\"Day \",CalendarDay-DATE(YEAR(CalendarDay),1,0)))","v":"Day 54"},{"$f":"IF(WEEKDAY(CalendarDay)=WeekStartValue,CONCATENATE(\"Week \",WEEKNUM(CalendarDay),\"/Day \",CalendarDay-DATE(YEAR(CalendarDay),1,0)),CONCATENATE(\"Day \",CalendarDay-DATE(YEAR(CalendarDay),1,0)))","v":"Day 55"}]
[]
[null,null,{"$f":"DaysAndWeeks+DATE(CalendarYear,2,1)-WEEKDAY(DATE(CalendarYear,2,1),(WeekStart=\"MON\")+1)+29","v":"2018-02-25"},"2018-02-26","2018-02-27","2018-02-28","2018-03-01","2018-03-02","2018-03-03"]
[null,null,{"$f":"IF(WEEKDAY(CalendarDay)=WeekStartValue,CONCATENATE(\"Week \",WEEKNUM(CalendarDay),\"/Day \",CalendarDay-DATE(YEAR(CalendarDay),1,0)),CONCATENATE(\"Day \",CalendarDay-DATE(YEAR(CalendarDay),1,0)))","v":"Week 9/Day 56"},{"$f":"IF(WEEKDAY(CalendarDay)=WeekStartValue,CONCATENATE(\"Week \",WEEKNUM(CalendarDay),\"/Day \",CalendarDay-DATE(YEAR(CalendarDay),1,0)),CONCATENATE(\"Day \",CalendarDay-DATE(YEAR(CalendarDay),1,0)))","v":"Day 57"},{"$f":"IF(WEEKDAY(CalendarDay)=WeekStartValue,CONCATENATE(\"Week \",WEEKNUM(CalendarDay),\"/Day \",CalendarDay-DATE(YEAR(CalendarDay),1,0)),CONCATENATE(\"Day \",CalendarDay-DATE(YEAR(CalendarDay),1,0)))","v":"Day 58"},{"$f":"IF(WEEKDAY(CalendarDay)=WeekStartValue,CONCATENATE(\"Week \",WEEKNUM(CalendarDay),\"/Day \",CalendarDay-DATE(YEAR(CalendarDay),1,0)),CONCATENATE(\"Day \",CalendarDay-DATE(YEAR(CalendarDay),1,0)))","v":"Day 59"},{"$f":"IF(WEEKDAY(CalendarDay)=WeekStartValue,CONCATENATE(\"Week \",WEEKNUM(CalendarDay),\"/Day \",CalendarDay-DATE(YEAR(CalendarDay),1,0)),CONCATENATE(\"Day \",CalendarDay-DATE(YEAR(CalendarDay),1,0)))","v":"Day 60"},{"$f":"IF(WEEKDAY(CalendarDay)=WeekStartValue,CONCATENATE(\"Week \",WEEKNUM(CalendarDay),\"/Day \",CalendarDay-DATE(YEAR(CalendarDay),1,0)),CONCATENATE(\"Day \",CalendarDay-DATE(YEAR(CalendarDay),1,0)))","v":"Day 61"},{"$f":"IF(WEEKDAY(CalendarDay)=WeekStartValue,CONCATENATE(\"Week \",WEEKNUM(CalendarDay),\"/Day \",CalendarDay-DATE(YEAR(CalendarDay),1,0)),CONCATENATE(\"Day \",CalendarDay-DATE(YEAR(CalendarDay),1,0)))","v":"Day 62"}]
[{"$nulls":4},"NOTES"]
[]
[null,null,{"$f":"DaysAndWeeks+DATE(CalendarYear,2,1)-WEEKDAY(DATE(CalendarYear,2,1),(WeekStart=\"MON\")+1)+36","v":"2018-03-04"},"2018-03-05"]
[null,null,{"$f":"IF(WEEKDAY(CalendarDay)=WeekStartValue,CONCATENATE(\"Week \",WEEKNUM(CalendarDay),\"/Day \",CalendarDay-DATE(YEAR(CalendarDay),1,0)),CONCATENATE(\"Day \",CalendarDay-DATE(YEAR(CalendarDay),1,0)))","v":"Week 10/Day 63"},{"$f":"IF(WEEKDAY(CalendarDay)=WeekStartValue,CONCATENATE(\"Week \",WEEKNUM(CalendarDay),\"/Day \",CalendarDay-DATE(YEAR(CalendarDay),1,0)),CONCATENATE(\"Day \",CalendarDay-DATE(YEAR(CalendarDay),1,0)))","v":"Day 64"}]

{"sheet":"MAR","index":2,"n_rows":20,"n_cols":9,"rows_kept":20,"merged":[[16,2,17,2],[17,4,19,8]]}
[null,"MAR",{"$f":"UPPER(TEXT(WeekStart,\"ddd\"))","v":"SUN"},{"$f":"UPPER(TEXT(D3,\"aaa\"))","v":"MON"},"TUE","WED","THU","FRI","SAT"]
[null,{"$f":"CalendarYear","v":2018}]
[null,null,{"$f":"DaysAndWeeks+DATE(CalendarYear,3,1)-WEEKDAY(DATE(CalendarYear,3,1),(WeekStart=\"MON\")+1)+1","v":"2018-02-25"},"2018-02-26","2018-02-27","2018-02-28","2018-03-01","2018-03-02","2018-03-03"]
[null,null,{"$f":"IF(DAY(CalendarDay)=1,CONCATENATE(\"Week \",WEEKNUM(CalendarDay),\"/Day \",CalendarDay-DATE(YEAR(CalendarDay),1,0)),CONCATENATE(\"Day \",CalendarDay-DATE(YEAR(CalendarDay),1,0)))","v":"Day 56"},"Day 57","Day 58","Day 59","Week 9/Day 60","Day 61","Day 62"]
[]
[null,null,{"$f":"DaysAndWeeks+DATE(CalendarYear,3,1)-WEEKDAY(DATE(CalendarYear,3,1),(WeekStart=\"MON\")+1)+8","v":"2018-03-04"},"2018-03-05","2018-03-06","2018-03-07","2018-03-08","2018-03-09","2018-03-10"]
[null,null,{"$f":"IF(WEEKDAY(CalendarDay)=WeekStartValue,CONCATENATE(\"Week \",WEEKNUM(CalendarDay),\"/Day \",CalendarDay-DATE(YEAR(CalendarDay),1,0)),CONCATENATE(\"Day \",CalendarDay-DATE(YEAR(CalendarDay),1,0)))","v":"Week 10/Day 63"},{"$f":"IF(WEEKDAY(CalendarDay)=WeekStartValue,CONCATENATE(\"Week \",WEEKNUM(CalendarDay),\"/Day \",CalendarDay-DATE(YEAR(CalendarDay),1,0)),CONCATENATE(\"Day \",CalendarDay-DATE(YEAR(CalendarDay),1,0)))","v":"Day 64"},{"$f":"IF(WEEKDAY(CalendarDay)=WeekStartValue,CONCATENATE(\"Week \",WEEKNUM(CalendarDay),\"/Day \",CalendarDay-DATE(YEAR(CalendarDay),1,0)),CONCATENATE(\"Day \",CalendarDay-DATE(YEAR(CalendarDay),1,0)))","v":"Day 65"},{"$f":"IF(WEEKDAY(CalendarDay)=WeekStartValue,CONCATENATE(\"Week \",WEEKNUM(CalendarDay),\"/Day \",CalendarDay-DATE(YEAR(CalendarDay),1,0)),CONCATENATE(\"Day \",CalendarDay-DATE(YEAR(CalendarDay),1,0)))","v":"Day 66"},{"$f":"IF(WEEKDAY(CalendarDay)=WeekStartValue,CONCATENATE(\"Week \",WEEKNUM(CalendarDay),\"/Day \",CalendarDay-DATE(YEAR(CalendarDay),1,0)),CONCATENATE(\"Day \",CalendarDay-DATE(YEAR(CalendarDay),1,0)))","v":"Day 67"},{"$f":"IF(WEEKDAY(CalendarDay)=WeekStartValue,CONCATENATE(\"Week \",WEEKNUM(CalendarDay),\"/Day \",CalendarDay-DATE(YEAR(CalendarDay),1,0)),CONCATENATE(\"Day \",CalendarDay-DATE(YEAR(CalendarDay),1,0)))","v":"Day 68"},{"$f":"IF(WEEKDAY(CalendarDay)=WeekStartValue,CONCATENATE(\"Week \",WEEKNUM(CalendarDay),\"/Day \",CalendarDay-DATE(YEAR(CalendarDay),1,0)),CONCATENATE(\"Day \",CalendarDay-DATE(YEAR(CalendarDay),1,0)))","v":"Day 69"}]
[]
[null,null,{"$f":"DaysAndWeeks+DATE(CalendarYear,3,1)-WEEKDAY(DATE(CalendarYear,3,1),(WeekStart=\"MON\")+1)+15","v":"2018-03-11"},"2018-03-12","2018-03-13","2018-03-14","2018-03-15","2018-03-16","2018-03-17"]
[null,null,{"$f":"IF(WEEKDAY(CalendarDay)=WeekStartValue,CONCATENATE(\"Week \",WEEKNUM(CalendarDay),\"/Day \",CalendarDay-DATE(YEAR(CalendarDay),1,0)),CONCATENATE(\"Day \",CalendarDay-DATE(YEAR(CalendarDay),1,0)))","v":"Week 11/Day 70"},{"$f":"IF(WEEKDAY(CalendarDay)=WeekStartValue,CONCATENATE(\"Week \",WEEKNUM(CalendarDay),\"/Day \",CalendarDay-DATE(YEAR(CalendarDay),1,0)),CONCATENATE(\"Day \",CalendarDay-DATE(YEAR(CalendarDay),1,0)))","v":"Day 71"},{"$f":"IF(WEEKDAY(CalendarDay)=WeekStartValue,CONCATENATE(\"Week \",WEEKNUM(CalendarDay),\"/Day \",CalendarDay-DATE(YEAR(CalendarDay),1,0)),CONCATENATE(\"Day \",CalendarDay-DATE(YEAR(CalendarDay),1,0)))","v":"Day 72"},{"$f":"IF(WEEKDAY(CalendarDay)=WeekStartValue,CONCATENATE(\"Week \",WEEKNUM(CalendarDay),\"/Day \",CalendarDay-DATE(YEAR(CalendarDay),1,0)),CONCATENATE(\"Day \",CalendarDay-DATE(YEAR(CalendarDay),1,0)))","v":"Day 73"},{"$f":"IF(WEEKDAY(CalendarDay)=WeekStartValue,CONCATENATE(\"Week \",WEEKNUM(CalendarDay),\"/Day \",CalendarDay-DATE(YEAR(CalendarDay),1,0)),CONCATENATE(\"Day \",CalendarDay-DATE(YEAR(CalendarDay),1,0)))","v":"Day 74"},{"$f":"IF(WEEKDAY(CalendarDay)=WeekStartValue,CONCATENATE(\"Week \",WEEKNUM(CalendarDay),\"/Day \",CalendarDay-DATE(YEAR(CalendarDay),1,0)),CONCATENATE(\"Day \",CalendarDay-DATE(YEAR(CalendarDay),1,0)))","v":"Day 75"},{"$f":"IF(WEEKDAY(CalendarDay)=WeekStartValue,CONCATENATE(\"Week \",WEEKNUM(CalendarDay),\"/Day \",CalendarDay-DATE(YEAR(CalendarDay),1,0)),CONCATENATE(\"Day \",CalendarDay-DATE(YEAR(CalendarDay),1,0)))","v":"Day 76"}]
[]
[null,null,{"$f":"DaysAndWeeks+DATE(CalendarYear,3,1)-WEEKDAY(DATE(CalendarYear,3,1),(WeekStart=\"MON\")+1)+22","v":"2018-03-18"},"2018-03-19","2018-03-20","2018-03-21","2018-03-22","2018-03-23","2018-03-24"]
[null,null,{"$f":"IF(WEEKDAY(CalendarDay)=WeekStartValue,CONCATENATE(\"Week \",WEEKNUM(CalendarDay),\"/Day \",CalendarDay-DATE(YEAR(CalendarDay),1,0)),CONCATENATE(\"Day \",CalendarDay-DATE(YEAR(CalendarDay),1,0)))","v":"Week 12/Day 77"},{"$f":"IF(WEEKDAY(CalendarDay)=WeekStartValue,CONCATENATE(\"Week \",WEEKNUM(CalendarDay),\"/Day \",CalendarDay-DATE(YEAR(CalendarDay),1,0)),CONCATENATE(\"Day \",CalendarDay-DATE(YEAR(CalendarDay),1,0)))","v":"Day 78"},{"$f":"IF(WEEKDAY(CalendarDay)=WeekStartValue,CONCATENATE(\"Week \",WEEKNUM(CalendarDay),\"/Day \",CalendarDay-DATE(YEAR(CalendarDay),1,0)),CONCATENATE(\"Day \",CalendarDay-DATE(YEAR(CalendarDay),1,0)))","v":"Day 79"},{"$f":"IF(WEEKDAY(CalendarDay)=WeekStartValue,CONCATENATE(\"Week \",WEEKNUM(CalendarDay),\"/Day \",CalendarDay-DATE(YEAR(CalendarDay),1,0)),CONCATENATE(\"Day \",CalendarDay-DATE(YEAR(CalendarDay),1,0)))","v":"Day 80"},{"$f":"IF(WEEKDAY(CalendarDay)=WeekStartValue,CONCATENATE(\"Week \",WEEKNUM(CalendarDay),\"/Day \",CalendarDay-DATE(YEAR(CalendarDay),1,0)),CONCATENATE(\"Day \",CalendarDay-DATE(YEAR(CalendarDay),1,0)))","v":"Day 81"},{"$f":"IF(WEEKDAY(CalendarDay)=WeekStartValue,CONCATENATE(\"Week \",WEEKNUM(CalendarDay),\"/Day \",CalendarDay-DATE(YEAR(CalendarDay),1,0)),CONCATENATE(\"Day \",CalendarDay-DATE(YEAR(CalendarDay),1,0)))","v":"Day 82"},{"$f":"IF(WEEKDAY(CalendarDay)=WeekStartValue,CONCATENATE(\"Week \",WEEKNUM(CalendarDay),\"/Day \",CalendarDay-DATE(YEAR(CalendarDay),1,0)),CONCATENATE(\"Day \",CalendarDay-DATE(YEAR(CalendarDay),1,0)))","v":"Day 83"}]
[]
[null,null,{"$f":"DaysAndWeeks+DATE(CalendarYear,3,1)-WEEKDAY(DATE(CalendarYear,3,1),(WeekStart=\"MON\")+1)+29","v":"2018-03-25"},"2018-03-26","2018-03-27","2018-03-28","2018-03-29","2018-03-30","2018-03-31"]
[null,null,{"$f":"IF(WEEKDAY(CalendarDay)=WeekStartValue,CONCATENATE(\"Week \",WEEKNUM(CalendarDay),\"/Day \",CalendarDay-DATE(YEAR(CalendarDay),1,0)),CONCATENATE(\"Day \",CalendarDay-DATE(YEAR(CalendarDay),1,0)))","v":"Week 13/Day 84"},{"$f":"IF(WEEKDAY(CalendarDay)=WeekStartValue,CONCATENATE(\"Week \",WEEKNUM(CalendarDay),\"/Day \",CalendarDay-DATE(YEAR(CalendarDay),1,0)),CONCATENATE(\"Day \",CalendarDay-DATE(YEAR(CalendarDay),1,0)))","v":"Day 85"},{"$f":"IF(WEEKDAY(CalendarDay)=WeekStartValue,CONCATENATE(\"Week \",WEEKNUM(CalendarDay),\"/Day \",CalendarDay-DATE(YEAR(CalendarDay),1,0)),CONCATENATE(\"Day \",CalendarDay-DATE(YEAR(CalendarDay),1,0)))","v":"Day 86"},{"$f":"IF(WEEKDAY(CalendarDay)=WeekStartValue,CONCATENATE(\"Week \",WEEKNUM(CalendarDay),\"/Day \",CalendarDay-DATE(YEAR(CalendarDay),1,0)),CONCATENATE(\"Day \",CalendarDay-DATE(YEAR(CalendarDay),1,0)))","v":"Day 87"},{"$f":"IF(WEEKDAY(CalendarDay)=WeekStartValue,CONCATENATE(\"Week \",WEEKNUM(CalendarDay),\"/Day \",CalendarDay-DATE(YEAR(CalendarDay),1,0)),CONCATENATE(\"Day \",CalendarDay-DATE(YEAR(CalendarDay),1,0)))","v":"Day 88"},{"$f":"IF(WEEKDAY(CalendarDay)=WeekStartValue,CONCATENATE(\"Week \",WEEKNUM(CalendarDay),\"/Day \",CalendarDay-DATE(YEAR(CalendarDay),1,0)),CONCATENATE(\"Day \",CalendarDay-DATE(YEAR(CalendarDay),1,0)))","v":"Day 89"},{"$f":"IF(WEEKDAY(CalendarDay)=WeekStartValue,CONCATENATE(\"Week \",WEEKNUM(CalendarDay),\"/Day \",CalendarDay-DATE(YEAR(CalendarDay),1,0)),CONCATENATE(\"Day \",CalendarDay-DATE(YEAR(CalendarDay),1,0)))","v":"Day 90"}]
[{"$nulls":4},"NOTES"]
[]
[null,null,{"$f":"DaysAndWeeks+DATE(CalendarYear,3,1)-WEEKDAY(DATE(CalendarYear,3,1),(WeekStart=\"MON\")+1)+36","v":"2018-04-01"},"2018-04-02"]
[null,null,{"$f":"IF(WEEKDAY(CalendarDay)=WeekStartValue,CONCATENATE(\"Week \",WEEKNUM(CalendarDay),\"/Day \",CalendarDay-DATE(YEAR(CalendarDay),1,0)),CONCATENATE(\"Day \",CalendarDay-DATE(YEAR(CalendarDay),1,0)))","v":"Week 14/Day 91"},{"$f":"IF(WEEKDAY(CalendarDay)=WeekStartValue,CONCATENATE(\"Week \",WEEKNUM(CalendarDay),\"/Day \",CalendarDay-DATE(YEAR(CalendarDay),1,0)),CONCATENATE(\"Day \",CalendarDay-DATE(YEAR(CalendarDay),1,0)))","v":"Day 92"}]

{"sheet":"APR","index":3,"n_rows":20,"n_cols":9,"rows_kept":20,"merged":[[16,2,17,2],[17,4,19,8]]}
[null,"APR",{"$f":"UPPER(TEXT(WeekStart,\"ddd\"))","v":"SUN"},{"$f":"UPPER(TEXT(D3,\"aaa\"))","v":"MON"},"TUE","WED","THU","FRI","SAT"]
[null,{"$f":"CalendarYear","v":2018}]
[null,null,{"$f":"DaysAndWeeks+DATE(CalendarYear,4,1)-WEEKDAY(DATE(CalendarYear,4,1),(WeekStart=\"MON\")+1)+1","v":"2018-04-01"},"2018-04-02","2018-04-03","2018-04-04","2018-04-05","2018-04-06","2018-04-07"]
[null,null,{"$f":"IF(DAY(CalendarDay)=1,CONCATENATE(\"Week \",WEEKNUM(CalendarDay),\"/Day \",CalendarDay-DATE(YEAR(CalendarDay),1,0)),CONCATENATE(\"Day \",CalendarDay-DATE(YEAR(CalendarDay),1,0)))","v":"Week 14/Day 91"},"Day 92","Day 93","Day 94","Day 95","Day 96","Day 97"]
[]
[null,null,{"$f":"DaysAndWeeks+DATE(CalendarYear,4,1)-WEEKDAY(DATE(CalendarYear,4,1),(WeekStart=\"MON\")+1)+8","v":"2018-04-08"},"2018-04-09","2018-04-10","2018-04-11","2018-04-12","2018-04-13","2018-04-14"]
[null,null,{"$f":"IF(WEEKDAY(CalendarDay)=WeekStartValue,CONCATENATE(\"Week \",WEEKNUM(CalendarDay),\"/Day \",CalendarDay-DATE(YEAR(CalendarDay),1,0)),CONCATENATE(\"Day \",CalendarDay-DATE(YEAR(CalendarDay),1,0)))","v":"Week 15/Day 98"},{"$f":"IF(WEEKDAY(CalendarDay)=WeekStartValue,CONCATENATE(\"Week \",WEEKNUM(CalendarDay),\"/Day \",CalendarDay-DATE(YEAR(CalendarDay),1,0)),CONCATENATE(\"Day \",CalendarDay-DATE(YEAR(CalendarDay),1,0)))","v":"Day 99"},{"$f":"IF(WEEKDAY(CalendarDay)=WeekStartValue,CONCATENATE(\"Week \",WEEKNUM(CalendarDay),\"/Day \",CalendarDay-DATE(YEAR(CalendarDay),1,0)),CONCATENATE(\"Day \",CalendarDay-DATE(YEAR(CalendarDay),1,0)))","v":"Day 100"},{"$f":"IF(WEEKDAY(CalendarDay)=WeekStartValue,CONCATENATE(\"Week \",WEEKNUM(CalendarDay),\"/Day \",CalendarDay-DATE(YEAR(CalendarDay),1,0)),CONCATENATE(\"Day \",CalendarDay-DATE(YEAR(CalendarDay),1,0)))","v":"Day 101"},{"$f":"IF(WEEKDAY(CalendarDay)=WeekStartValue,CONCATENATE(\"Week \",WEEKNUM(CalendarDay),\"/Day \",CalendarDay-DATE(YEAR(CalendarDay),1,0)),CONCATENATE(\"Day \",CalendarDay-DATE(YEAR(CalendarDay),1,0)))","v":"Day 102"},{"$f":"IF(WEEKDAY(CalendarDay)=WeekStartValue,CONCATENATE(\"Week \",WEEKNUM(CalendarDay),\"/Day \",CalendarDay-DATE(YEAR(CalendarDay),1,0)),CONCATENATE(\"Day \",CalendarDay-DATE(YEAR(CalendarDay),1,0)))","v":"Day 103"},{"$f":"IF(WEEKDAY(CalendarDay)=WeekStartValue,CONCATENATE(\"Week \",WEEKNUM(CalendarDay),\"/Day \",CalendarDay-DATE(YEAR(CalendarDay),1,0)),CONCATENATE(\"Day \",CalendarDay-DATE(YEAR(CalendarDay),1,0)))","v":"Day 104"}]
[]
[null,null,{"$f":"DaysAndWeeks+DATE(CalendarYear,4,1)-WEEKDAY(DATE(CalendarYear,4,1),(WeekStart=\"MON\")+1)+15","v":"2018-04-15"},"2018-04-16","2018-04-17","2018-04-18","2018-04-19","2018-04-20","2018-04-21"]
[null,null,{"$f":"IF(WEEKDAY(CalendarDay)=WeekStartValue,CONCATENATE(\"Week \",WEEKNUM(CalendarDay),\"/Day \",CalendarDay-DATE(YEAR(CalendarDay),1,0)),CONCATENATE(\"Day \",CalendarDay-DATE(YEAR(CalendarDay),1,0)))","v":"Week 16/Day 105"},{"$f":"IF(WEEKDAY(CalendarDay)=WeekStartValue,CONCATENATE(\"Week \",WEEKNUM(CalendarDay),\"/Day \",CalendarDay-DATE(YEAR(CalendarDay),1,0)),CONCATENATE(\"Day \",CalendarDay-DATE(YEAR(CalendarDay),1,0)))","v":"Day 106"},{"$f":"IF(WEEKDAY(CalendarDay)=WeekStartValue,CONCATENATE(\"Week \",WEEKNUM(CalendarDay),\"/Day \",CalendarDay-DATE(YEAR(CalendarDay),1,0)),CONCATENATE(\"Day \",CalendarDay-DATE(YEAR(CalendarDay),1,0)))","v":"Day 107"},{"$f":"IF(WEEKDAY(CalendarDay)=WeekStartValue,CONCATENATE(\"Week \",WEEKNUM(CalendarDay),\"/Day \",CalendarDay-DATE(YEAR(CalendarDay),1,0)),CONCATENATE(\"Day \",CalendarDay-DATE(YEAR(CalendarDay),1,0)))","v":"Day 108"},{"$f":"IF(WEEKDAY(CalendarDay)=WeekStartValue,CONCATENATE(\"Week \",WEEKNUM(CalendarDay),\"/Day \",CalendarDay-DATE(YEAR(CalendarDay),1,0)),CONCATENATE(\"Day \",CalendarDay-DATE(YEAR(CalendarDay),1,0)))","v":"Day 109"},{"$f":"IF(WEEKDAY(CalendarDay)=WeekStartValue,CONCATENATE(\"Week \",WEEKNUM(CalendarDay),\"/Day \",CalendarDay-DATE(YEAR(CalendarDay),1,0)),CONCATENATE(\"Day \",CalendarDay-DATE(YEAR(CalendarDay),1,0)))","v":"Day 110"},{"$f":"IF(WEEKDAY(CalendarDay)=WeekStartValue,CONCATENATE(\"Week \",WEEKNUM(CalendarDay),\"/Day \",CalendarDay-DATE(YEAR(CalendarDay),1,0)),CONCATENATE(\"Day \",CalendarDay-DATE(YEAR(CalendarDay),1,0)))","v":"Day 111"}]
[]
[null,null,{"$f":"DaysAndWeeks+DATE(CalendarYear,4,1)-WEEKDAY(DATE(CalendarYear,4,1),(WeekStart=\"MON\")+1)+22","v":"2018-04-22"},"2018-04-23","2018-04-24","2018-04-25","2018-04-26","2018-04-27","2018-04-28"]
[null,null,{"$f":"IF(WEEKDAY(CalendarDay)=WeekStartValue,CONCATENATE(\"Week \",WEEKNUM(CalendarDay),\"/Day \",CalendarDay-DATE(YEAR(CalendarDay),1,0)),CONCATENATE(\"Day \",CalendarDay-DATE(YEAR(CalendarDay),1,0)))","v":"Week 17/Day 112"},{"$f":"IF(WEEKDAY(CalendarDay)=WeekStartValue,CONCATENATE(\"Week \",WEEKNUM(CalendarDay),\"/Day \",CalendarDay-DATE(YEAR(CalendarDay),1,0)),CONCATENATE(\"Day \",CalendarDay-DATE(YEAR(CalendarDay),1,0)))","v":"Day 113"},{"$f":"IF(WEEKDAY(CalendarDay)=WeekStartValue,CONCATENATE(\"Week \",WEEKNUM(CalendarDay),\"/Day \",CalendarDay-DATE(YEAR(CalendarDay),1,0)),CONCATENATE(\"Day \",CalendarDay-DATE(YEAR(CalendarDay),1,0)))","v":"Day 114"},{"$f":"IF(WEEKDAY(CalendarDay)=WeekStartValue,CONCATENATE(\"Week \",WEEKNUM(CalendarDay),\"/Day \",CalendarDay-DATE(YEAR(CalendarDay),1,0)),CONCATENATE(\"Day \",CalendarDay-DATE(YEAR(CalendarDay),1,0)))","v":"Day 115"},{"$f":"IF(WEEKDAY(CalendarDay)=WeekStartValue,CONCATENATE(\"Week \",WEEKNUM(CalendarDay),\"/Day \",CalendarDay-DATE(YEAR(CalendarDay),1,0)),CONCATENATE(\"Day \",CalendarDay-DATE(YEAR(CalendarDay),1,0)))","v":"Day 116"},{"$f":"IF(WEEKDAY(CalendarDay)=WeekStartValue,CONCATENATE(\"Week \",WEEKNUM(CalendarDay),\"/Day \",CalendarDay-DATE(YEAR(CalendarDay),1,0)),CONCATENATE(\"Day \",CalendarDay-DATE(YEAR(CalendarDay),1,0)))","v":"Day 117"},{"$f":"IF(WEEKDAY(CalendarDay)=WeekStartValue,CONCATENATE(\"Week \",WEEKNUM(CalendarDay),\"/Day \",CalendarDay-DATE(YEAR(CalendarDay),1,0)),CONCATENATE(\"Day \",CalendarDay-DATE(YEAR(CalendarDay),1,0)))","v":"Day 118"}]
[]
[null,null,{"$f":"DaysAndWeeks+DATE(CalendarYear,4,1)-WEEKDAY(DATE(CalendarYear,4,1),(WeekStart=\"MON\")+1)+29","v":"2018-04-29"},"2018-04-30","2018-05-01","2018-05-02","2018-05-03","2018-05-04","2018-05-05"]
[null,null,{"$f":"IF(WEEKDAY(CalendarDay)=WeekStartValue,CONCATENATE(\"Week \",WEEKNUM(CalendarDay),\"/Day \",CalendarDay-DATE(YEAR(CalendarDay),1,0)),CONCATENATE(\"Day \",CalendarDay-DATE(YEAR(CalendarDay),1,0)))","v":"Week 18/Day 119"},{"$f":"IF(WEEKDAY(CalendarDay)=WeekStartValue,CONCATENATE(\"Week \",WEEKNUM(CalendarDay),\"/Day \",CalendarDay-DATE(YEAR(CalendarDay),1,0)),CONCATENATE(\"Day \",CalendarDay-DATE(YEAR(CalendarDay),1,0)))","v":"Day 120"},{"$f":"IF(WEEKDAY(CalendarDay)=WeekStartValue,CONCATENATE(\"Week \",WEEKNUM(CalendarDay),\"/Day \",CalendarDay-DATE(YEAR(CalendarDay),1,0)),CONCATENATE(\"Day \",CalendarDay-DATE(YEAR(CalendarDay),1,0)))","v":"Day 121"},{"$f":"IF(WEEKDAY(CalendarDay)=WeekStartValue,CONCATENATE(\"Week \",WEEKNUM(CalendarDay),\"/Day \",CalendarDay-DATE(YEAR(CalendarDay),1,0)),CONCATENATE(\"Day \",CalendarDay-DATE(YEAR(CalendarDay),1,0)))","v":"Day 122"},{"$f":"IF(WEEKDAY(CalendarDay)=WeekStartValue,CONCATENATE(\"Week \",WEEKNUM(CalendarDay),\"/Day \",CalendarDay-DATE(YEAR(CalendarDay),1,0)),CONCATENATE(\"Day \",CalendarDay-DATE(YEAR(CalendarDay),1,0)))","v":"Day 123"},{"$f":"IF(WEEKDAY(CalendarDay)=WeekStartValue,CONCATENATE(\"Week \",WEEKNUM(CalendarDay),\"/Day \",CalendarDay-DATE(YEAR(CalendarDay),1,0)),CONCATENATE(\"Day \",CalendarDay-DATE(YEAR(CalendarDay),1,0)))","v":"Day 124"},{"$f":"IF(WEEKDAY(CalendarDay)=WeekStartValue,CONCATENATE(\"Week \",WEEKNUM(CalendarDay),\"/Day \",CalendarDay-DATE(YEAR(CalendarDay),1,0)),CONCATENATE(\"Day \",CalendarDay-DATE(YEAR(CalendarDay),1,0)))","v":"Day 125"}]
[{"$nulls":4},"NOTES"]
[]
[null,null,{"$f":"DaysAndWeeks+DATE(CalendarYear,4,1)-WEEKDAY(DATE(CalendarYear,4,1),(WeekStart=\"MON\")+1)+36","v":"2018-05-06"},"2018-05-07"]
[null,null,{"$f":"IF(WEEKDAY(CalendarDay)=WeekStartValue,CONCATENATE(\"Week \",WEEKNUM(CalendarDay),\"/Day \",CalendarDay-DATE(YEAR(CalendarDay),1,0)),CONCATENATE(\"Day \",CalendarDay-DATE(YEAR(CalendarDay),1,0)))","v":"Week 19/Day 126"},{"$f":"IF(WEEKDAY(CalendarDay)=WeekStartValue,CONCATENATE(\"Week \",WEEKNUM(CalendarDay),\"/Day \",CalendarDay-DATE(YEAR(CalendarDay),1,0)),CONCATENATE(\"Day \",CalendarDay-DATE(YEAR(CalendarDay),1,0)))","v":"Day 127"}]

{"sheet":"MAY","index":4,"n_rows":20,"n_cols":9,"rows_kept":20,"merged":[[16,2,17,2],[17,4,19,8]]}
[null,"MAY",{"$f":"UPPER(TEXT(WeekStart,\"ddd\"))","v":"SUN"},{"$f":"UPPER(TEXT(D3,\"aaa\"))","v":"MON"},"TUE","WED","THU","FRI","SAT"]
[null,{"$f":"CalendarYear","v":2018}]
[null,null,{"$f":"DaysAndWeeks+DATE(CalendarYear,5,1)-WEEKDAY(DATE(CalendarYear,5,1),(WeekStart=\"MON\")+1)+1","v":"2018-04-29"},"2018-04-30","2018-05-01","2018-05-02","2018-05-03","2018-05-04","2018-05-05"]
[null,null,{"$f":"IF(DAY(CalendarDay)=1,CONCATENATE(\"Week \",WEEKNUM(CalendarDay),\"/Day \",CalendarDay-DATE(YEAR(CalendarDay),1,0)),CONCATENATE(\"Day \",CalendarDay-DATE(YEAR(CalendarDay),1,0)))","v":"Day 119"},"Day 120","Week 18/Day 121","Day 122","Day 123","Day 124","Day 125"]
[]
[null,null,{"$f":"DaysAndWeeks+DATE(CalendarYear,5,1)-WEEKDAY(DATE(CalendarYear,5,1),(WeekStart=\"MON\")+1)+8","v":"2018-05-06"},"2018-05-07","2018-05-08","2018-05-09","2018-05-10","2018-05-11","2018-05-12"]
[null,null,{"$f":"IF(WEEKDAY(CalendarDay)=WeekStartValue,CONCATENATE(\"Week \",WEEKNUM(CalendarDay),\"/Day \",CalendarDay-DATE(YEAR(CalendarDay),1,0)),CONCATENATE(\"Day \",CalendarDay-DATE(YEAR(CalendarDay),1,0)))","v":"Week 19/Day 126"},{"$f":"IF(WEEKDAY(CalendarDay)=WeekStartValue,CONCATENATE(\"Week \",WEEKNUM(CalendarDay),\"/Day \",CalendarDay-DATE(YEAR(CalendarDay),1,0)),CONCATENATE(\"Day \",CalendarDay-DATE(YEAR(CalendarDay),1,0)))","v":"Day 127"},{"$f":"IF(WEEKDAY(CalendarDay)=WeekStartValue,CONCATENATE(\"Week \",WEEKNUM(CalendarDay),\"/Day \",CalendarDay-DATE(YEAR(CalendarDay),1,0)),CONCATENATE(\"Day \",CalendarDay-DATE(YEAR(CalendarDay),1,0)))","v":"Day 128"},{"$f":"IF(WEEKDAY(CalendarDay)=WeekStartValue,CONCATENATE(\"Week \",WEEKNUM(CalendarDay),\"/Day \",CalendarDay-DATE(YEAR(CalendarDay),1,0)),CONCATENATE(\"Day \",CalendarDay-DATE(YEAR(CalendarDay),1,0)))","v":"Day 129"},{"$f":"IF(WEEKDAY(CalendarDay)=WeekStartValue,CONCATENATE(\"Week \",WEEKNUM(CalendarDay),\"/Day \",CalendarDay-DATE(YEAR(CalendarDay),1,0)),CONCATENATE(\"Day \",CalendarDay-DATE(YEAR(CalendarDay),1,0)))","v":"Day 130"},{"$f":"IF(WEEKDAY(CalendarDay)=WeekStartValue,CONCATENATE(\"Week \",WEEKNUM(CalendarDay),\"/Day \",CalendarDay-DATE(YEAR(CalendarDay),1,0)),CONCATENATE(\"Day \",CalendarDay-DATE(YEAR(CalendarDay),1,0)))","v":"Day 131"},{"$f":"IF(WEEKDAY(CalendarDay)=WeekStartValue,CONCATENATE(\"Week \",WEEKNUM(CalendarDay),\"/Day \",CalendarDay-DATE(YEAR(CalendarDay),1,0)),CONCATENATE(\"Day \",CalendarDay-DATE(YEAR(CalendarDay),1,0)))","v":"Day 132"}]
[]
[null,null,{"$f":"DaysAndWeeks+DATE(CalendarYear,5,1)-WEEKDAY(DATE(CalendarYear,5,1),(WeekStart=\"MON\")+1)+15","v":"2018-05-13"},"2018-05-14","2018-05-15","2018-05-16","2018-05-17","2018-05-18","2018-05-19"]
[null,null,{"$f":"IF(WEEKDAY(CalendarDay)=WeekStartValue,CONCATENATE(\"Week \",WEEKNUM(CalendarDay),\"/Day \",CalendarDay-DATE(YEAR(CalendarDay),1,0)),CONCATENATE(\"Day \",CalendarDay-DATE(YEAR(CalendarDay),1,0)))","v":"Week 20/Day 133"},{"$f":"IF(WEEKDAY(CalendarDay)=WeekStartValue,CONCATENATE(\"Week \",WEEKNUM(CalendarDay),\"/Day \",CalendarDay-DATE(YEAR(CalendarDay),1,0)),CONCATENATE(\"Day \",CalendarDay-DATE(YEAR(CalendarDay),1,0)))","v":"Day 134"},{"$f":"IF(WEEKDAY(CalendarDay)=WeekStartValue,CONCATENATE(\"Week \",WEEKNUM(CalendarDay),\"/Day \",CalendarDay-DATE(YEAR(CalendarDay),1,0)),CONCATENATE(\"Day \",CalendarDay-DATE(YEAR(CalendarDay),1,0)))","v":"Day 135"},{"$f":"IF(WEEKDAY(CalendarDay)=WeekStartValue,CONCATENATE(\"Week \",WEEKNUM(CalendarDay),\"/Day \",CalendarDay-DATE(YEAR(CalendarDay),1,0)),CONCATENATE(\"Day \",CalendarDay-DATE(YEAR(CalendarDay),1,0)))","v":"Day 136"},{"$f":"IF(WEEKDAY(CalendarDay)=WeekStartValue,CONCATENATE(\"Week \",WEEKNUM(CalendarDay),\"/Day \",CalendarDay-DATE(YEAR(CalendarDay),1,0)),CONCATENATE(\"Day \",CalendarDay-DATE(YEAR(CalendarDay),1,0)))","v":"Day 137"},{"$f":"IF(WEEKDAY(CalendarDay)=WeekStartValue,CONCATENATE(\"Week \",WEEKNUM(CalendarDay),\"/Day \",CalendarDay-DATE(YEAR(CalendarDay),1,0)),CONCATENATE(\"Day \",CalendarDay-DATE(YEAR(CalendarDay),1,0)))","v":"Day 138"},{"$f":"IF(WEEKDAY(CalendarDay)=WeekStartValue,CONCATENATE(\"Week \",WEEKNUM(CalendarDay),\"/Day \",CalendarDay-DATE(YEAR(CalendarDay),1,0)),CONCATENATE(\"Day \",CalendarDay-DATE(YEAR(CalendarDay),1,0)))","v":"Day 139"}]
[]
[null,null,{"$f":"DaysAndWeeks+DATE(CalendarYear,5,1)-WEEKDAY(DATE(CalendarYear,5,1),(WeekStart=\"MON\")+1)+22","v":"2018-05-20"},"2018-05-21","2018-05-22","2018-05-23","2018-05-24","2018-05-25","2018-05-26"]
[null,null,{"$f":"IF(WEEKDAY(CalendarDay)=WeekStartValue,CONCATENATE(\"Week \",WEEKNUM(CalendarDay),\"/Day \",CalendarDay-DATE(YEAR(CalendarDay),1,0)),CONCATENATE(\"Day \",CalendarDay-DATE(YEAR(CalendarDay),1,0)))","v":"Week 21/Day 140"},{"$f":"IF(WEEKDAY(CalendarDay)=WeekStartValue,CONCATENATE(\"Week \",WEEKNUM(CalendarDay),\"/Day \",CalendarDay-DATE(YEAR(CalendarDay),1,0)),CONCATENATE(\"Day \",CalendarDay-DATE(YEAR(CalendarDay),1,0)))","v":"Day 141"},{"$f":"IF(WEEKDAY(CalendarDay)=WeekStartValue,CONCATENATE(\"Week \",WEEKNUM(CalendarDay),\"/Day \",CalendarDay-DATE(YEAR(CalendarDay),1,0)),CONCATENATE(\"Day \",CalendarDay-DATE(YEAR(CalendarDay),1,0)))","v":"Day 142"},{"$f":"IF(WEEKDAY(CalendarDay)=WeekStartValue,CONCATENATE(\"Week \",WEEKNUM(CalendarDay),\"/Day \",CalendarDay-DATE(YEAR(CalendarDay),1,0)),CONCATENATE(\"Day \",CalendarDay-DATE(YEAR(CalendarDay),1,0)))","v":"Day 143"},{"$f":"IF(WEEKDAY(CalendarDay)=WeekStartValue,CONCATENATE(\"Week \",WEEKNUM(CalendarDay),\"/Day \",CalendarDay-DATE(YEAR(CalendarDay),1,0)),CONCATENATE(\"Day \",CalendarDay-DATE(YEAR(CalendarDay),1,0)))","v":"Day 144"},{"$f":"IF(WEEKDAY(CalendarDay)=WeekStartValue,CONCATENATE(\"Week \",WEEKNUM(CalendarDay),\"/Day \",CalendarDay-DATE(YEAR(CalendarDay),1,0)),CONCATENATE(\"Day \",CalendarDay-DATE(YEAR(CalendarDay),1,0)))","v":"Day 145"},{"$f":"IF(WEEKDAY(CalendarDay)=WeekStartValue,CONCATENATE(\"Week \",WEEKNUM(CalendarDay),\"/Day \",CalendarDay-DATE(YEAR(CalendarDay),1,0)),CONCATENATE(\"Day \",CalendarDay-DATE(YEAR(CalendarDay),1,0)))","v":"Day 146"}]
[]
[null,null,{"$f":"DaysAndWeeks+DATE(CalendarYear,5,1)-WEEKDAY(DATE(CalendarYear,5,1),(WeekStart=\"MON\")+1)+29","v":"2018-05-27"},"2018-05-28","2018-05-29","2018-05-30","2018-05-31","2018-06-01","2018-06-02"]
[null,null,{"$f":"IF(WEEKDAY(CalendarDay)=WeekStartValue,CONCATENATE(\"Week \",WEEKNUM(CalendarDay),\"/Day \",CalendarDay-DATE(YEAR(CalendarDay),1,0)),CONCATENATE(\"Day \",CalendarDay-DATE(YEAR(CalendarDay),1,0)))","v":"Week 22/Day 147"},{"$f":"IF(WEEKDAY(CalendarDay)=WeekStartValue,CONCATENATE(\"Week \",WEEKNUM(CalendarDay),\"/Day \",CalendarDay-DATE(YEAR(CalendarDay),1,0)),CONCATENATE(\"Day \",CalendarDay-DATE(YEAR(CalendarDay),1,0)))","v":"Day 148"},{"$f":"IF(WEEKDAY(CalendarDay)=WeekStartValue,CONCATENATE(\"Week \",WEEKNUM(CalendarDay),\"/Day \",CalendarDay-DATE(YEAR(CalendarDay),1,0)),CONCATENATE(\"Day \",CalendarDay-DATE(YEAR(CalendarDay),1,0)))","v":"Day 149"},{"$f":"IF(WEEKDAY(CalendarDay)=WeekStartValue,CONCATENATE(\"Week \",WEEKNUM(CalendarDay),\"/Day \",CalendarDay-DATE(YEAR(CalendarDay),1,0)),CONCATENATE(\"Day \",CalendarDay-DATE(YEAR(CalendarDay),1,0)))","v":"Day 150"},{"$f":"IF(WEEKDAY(CalendarDay)=WeekStartValue,CONCATENATE(\"Week \",WEEKNUM(CalendarDay),\"/Day \",CalendarDay-DATE(YEAR(CalendarDay),1,0)),CONCATENATE(\"Day \",CalendarDay-DATE(YEAR(CalendarDay),1,0)))","v":"Day 151"},{"$f":"IF(WEEKDAY(CalendarDay)=WeekStartValue,CONCATENATE(\"Week \",WEEKNUM(CalendarDay),\"/Day \",CalendarDay-DATE(YEAR(CalendarDay),1,0)),CONCATENATE(\"Day \",CalendarDay-DATE(YEAR(CalendarDay),1,0)))","v":"Day 152"},{"$f":"IF(WEEKDAY(CalendarDay)=WeekStartValue,CONCATENATE(\"Week \",WEEKNUM(CalendarDay),\"/Day \",CalendarDay-DATE(YEAR(CalendarDay),1,0)),CONCATENATE(\"Day \",CalendarDay-DATE(YEAR(CalendarDay),1,0)))","v":"Day 153"}]
[{"$nulls":4},"NOTES"]
[]
[null,null,{"$f":"DaysAndWeeks+DATE(CalendarYear,5,1)-WEEKDAY(DATE(CalendarYear,5,1),(WeekStart=\"MON\")+1)+36","v":"2018-06-03"},"2018-06-04"]
[null,null,{"$f":"IF(WEEKDAY(CalendarDay)=WeekStartValue,CONCATENATE(\"Week \",WEEKNUM(CalendarDay),\"/Day \",CalendarDay-DATE(YEAR(CalendarDay),1,0)),CONCATENATE(\"Day \",CalendarDay-DATE(YEAR(CalendarDay),1,0)))","v":"Week 23/Day 154"},{"$f":"IF(WEEKDAY(CalendarDay)=WeekStartValue,CONCATENATE(\"Week \",WEEKNUM(CalendarDay),\"/Day \",CalendarDay-DATE(YEAR(CalendarDay),1,0)),CONCATENATE(\"Day \",CalendarDay-DATE(YEAR(CalendarDay),1,0)))","v":"Day 155"}]

{"sheet":"JUN","index":5,"n_rows":20,"n_cols":9,"rows_kept":20,"merged":[[16,2,17,2],[17,4,19,8]]}
[null,"JUN",{"$f":"UPPER(TEXT(WeekStart,\"ddd\"))","v":"SUN"},{"$f":"UPPER(TEXT(D3,\"aaa\"))","v":"MON"},"TUE","WED","THU","FRI","SAT"]
[null,{"$f":"CalendarYear","v":2018}]
[null,null,{"$f":"DaysAndWeeks+DATE(CalendarYear,6,1)-WEEKDAY(DATE(CalendarYear,6,1),(WeekStart=\"MON\")+1)+1","v":"2018-05-27"},"2018-05-28","2018-05-29","2018-05-30","2018-05-31","2018-06-01","2018-06-02"]
[null,null,{"$f":"IF(DAY(CalendarDay)=1,CONCATENATE(\"Week \",WEEKNUM(CalendarDay),\"/Day \",CalendarDay-DATE(YEAR(CalendarDay),1,0)),CONCATENATE(\"Day \",CalendarDay-DATE(YEAR(CalendarDay),1,0)))","v":"Day 147"},"Day 148","Day 149","Day 150","Day 151","Week 22/Day 152","Day 153"]
[]
[null,null,{"$f":"DaysAndWeeks+DATE(CalendarYear,6,1)-WEEKDAY(DATE(CalendarYear,6,1),(WeekStart=\"MON\")+1)+8","v":"2018-06-03"},"2018-06-04","2018-06-05","2018-06-06","2018-06-07","2018-06-08","2018-06-09"]
[null,null,{"$f":"IF(WEEKDAY(CalendarDay)=WeekStartValue,CONCATENATE(\"Week \",WEEKNUM(CalendarDay),\"/Day \",CalendarDay-DATE(YEAR(CalendarDay),1,0)),CONCATENATE(\"Day \",CalendarDay-DATE(YEAR(CalendarDay),1,0)))","v":"Week 23/Day 154"},{"$f":"IF(WEEKDAY(CalendarDay)=WeekStartValue,CONCATENATE(\"Week \",WEEKNUM(CalendarDay),\"/Day \",CalendarDay-DATE(YEAR(CalendarDay),1,0)),CONCATENATE(\"Day \",CalendarDay-DATE(YEAR(CalendarDay),1,0)))","v":"Day 155"},{"$f":"IF(WEEKDAY(CalendarDay)=WeekStartValue,CONCATENATE(\"Week \",WEEKNUM(CalendarDay),\"/Day \",CalendarDay-DATE(YEAR(CalendarDay),1,0)),CONCATENATE(\"Day \",CalendarDay-DATE(YEAR(CalendarDay),1,0)))","v":"Day 156"},{"$f":"IF(WEEKDAY(CalendarDay)=WeekStartValue,CONCATENATE(\"Week \",WEEKNUM(CalendarDay),\"/Day \",CalendarDay-DATE(YEAR(CalendarDay),1,0)),CONCATENATE(\"Day \",CalendarDay-DATE(YEAR(CalendarDay),1,0)))","v":"Day 157"},{"$f":"IF(WEEKDAY(CalendarDay)=WeekStartValue,CONCATENATE(\"Week \",WEEKNUM(CalendarDay),\"/Day \",CalendarDay-DATE(YEAR(CalendarDay),1,0)),CONCATENATE(\"Day \",CalendarDay-DATE(YEAR(CalendarDay),1,0)))","v":"Day 158"},{"$f":"IF(WEEKDAY(CalendarDay)=WeekStartValue,CONCATENATE(\"Week \",WEEKNUM(CalendarDay),\"/Day \",CalendarDay-DATE(YEAR(CalendarDay),1,0)),CONCATENATE(\"Day \",CalendarDay-DATE(YEAR(CalendarDay),1,0)))","v":"Day 159"},{"$f":"IF(WEEKDAY(CalendarDay)=WeekStartValue,CONCATENATE(\"Week \",WEEKNUM(CalendarDay),\"/Day \",CalendarDay-DATE(YEAR(CalendarDay),1,0)),CONCATENATE(\"Day \",CalendarDay-DATE(YEAR(CalendarDay),1,0)))","v":"Day 160"}]
[]
[null,null,{"$f":"DaysAndWeeks+DATE(CalendarYear,6,1)-WEEKDAY(DATE(CalendarYear,6,1),(WeekStart=\"MON\")+1)+15","v":"2018-06-10"},"2018-06-11","2018-06-12","2018-06-13","2018-06-14","2018-06-15","2018-06-16"]
[null,null,{"$f":"IF(WEEKDAY(CalendarDay)=WeekStartValue,CONCATENATE(\"Week \",WEEKNUM(CalendarDay),\"/Day \",CalendarDay-DATE(YEAR(CalendarDay),1,0)),CONCATENATE(\"Day \",CalendarDay-DATE(YEAR(CalendarDay),1,0)))","v":"Week 24/Day 161"},{"$f":"IF(WEEKDAY(CalendarDay)=WeekStartValue,CONCATENATE(\"Week \",WEEKNUM(CalendarDay),\"/Day \",CalendarDay-DATE(YEAR(CalendarDay),1,0)),CONCATENATE(\"Day \",CalendarDay-DATE(YEAR(CalendarDay),1,0)))","v":"Day 162"},{"$f":"IF(WEEKDAY(CalendarDay)=WeekStartValue,CONCATENATE(\"Week \",WEEKNUM(CalendarDay),\"/Day \",CalendarDay-DATE(YEAR(CalendarDay),1,0)),CONCATENATE(\"Day \",CalendarDay-DATE(YEAR(CalendarDay),1,0)))","v":"Day 163"},{"$f":"IF(WEEKDAY(CalendarDay)=WeekStartValue,CONCATENATE(\"Week \",WEEKNUM(CalendarDay),\"/Day \",CalendarDay-DATE(YEAR(CalendarDay),1,0)),CONCATENATE(\"Day \",CalendarDay-DATE(YEAR(CalendarDay),1,0)))","v":"Day 164"},{"$f":"IF(WEEKDAY(CalendarDay)=WeekStartValue,CONCATENATE(\"Week \",WEEKNUM(CalendarDay),\"/Day \",CalendarDay-DATE(YEAR(CalendarDay),1,0)),CONCATENATE(\"Day \",CalendarDay-DATE(YEAR(CalendarDay),1,0)))","v":"Day 165"},{"$f":"IF(WEEKDAY(CalendarDay)=WeekStartValue,CONCATENATE(\"Week \",WEEKNUM(CalendarDay),\"/Day \",CalendarDay-DATE(YEAR(CalendarDay),1,0)),CONCATENATE(\"Day \",CalendarDay-DATE(YEAR(CalendarDay),1,0)))","v":"Day 166"},{"$f":"IF(WEEKDAY(CalendarDay)=WeekStartValue,CONCATENATE(\"Week \",WEEKNUM(CalendarDay),\"/Day \",CalendarDay-DATE(YEAR(CalendarDay),1,0)),CONCATENATE(\"Day \",CalendarDay-DATE(YEAR(CalendarDay),1,0)))","v":"Day 167"}]
[]
[null,null,{"$f":"DaysAndWeeks+DATE(CalendarYear,6,1)-WEEKDAY(DATE(CalendarYear,6,1),(WeekStart=\"MON\")+1)+22","v":"2018-06-17"},"2018-06-18","2018-06-19","2018-06-20","2018-06-21","2018-06-22","2018-06-23"]
[null,null,{"$f":"IF(WEEKDAY(CalendarDay)=WeekStartValue,CONCATENATE(\"Week \",WEEKNUM(CalendarDay),\"/Day \",CalendarDay-DATE(YEAR(CalendarDay),1,0)),CONCATENATE(\"Day \",CalendarDay-DATE(YEAR(CalendarDay),1,0)))","v":"Week 25/Day 168"},{"$f":"IF(WEEKDAY(CalendarDay)=WeekStartValue,CONCATENATE(\"Week \",WEEKNUM(CalendarDay),\"/Day \",CalendarDay-DATE(YEAR(CalendarDay),1,0)),CONCATENATE(\"Day \",CalendarDay-DATE(YEAR(CalendarDay),1,0)))","v":"Day 169"},{"$f":"IF(WEEKDAY(CalendarDay)=WeekStartValue,CONCATENATE(\"Week \",WEEKNUM(CalendarDay),\"/Day \",CalendarDay-DATE(YEAR(CalendarDay),1,0)),CONCATENATE(\"Day \",CalendarDay-DATE(YEAR(CalendarDay),1,0)))","v":"Day 170"},{"$f":"IF(WEEKDAY(CalendarDay)=WeekStartValue,CONCATENATE(\"Week \",WEEKNUM(CalendarDay),\"/Day \",CalendarDay-DATE(YEAR(CalendarDay),1,0)),CONCATENATE(\"Day \",CalendarDay-DATE(YEAR(CalendarDay),1,0)))","v":"Day 171"},{"$f":"IF(WEEKDAY(CalendarDay)=WeekStartValue,CONCATENATE(\"Week \",WEEKNUM(CalendarDay),\"/Day \",CalendarDay-DATE(YEAR(CalendarDay),1,0)),CONCATENATE(\"Day \",CalendarDay-DATE(YEAR(CalendarDay),1,0)))","v":"Day 172"},{"$f":"IF(WEEKDAY(CalendarDay)=WeekStartValue,CONCATENATE(\"Week \",WEEKNUM(CalendarDay),\"/Day \",CalendarDay-DATE(YEAR(CalendarDay),1,0)),CONCATENATE(\"Day \",CalendarDay-DATE(YEAR(CalendarDay),1,0)))","v":"Day 173"},{"$f":"IF(WEEKDAY(CalendarDay)=WeekStartValue,CONCATENATE(\"Week \",WEEKNUM(CalendarDay),\"/Day \",CalendarDay-DATE(YEAR(CalendarDay),1,0)),CONCATENATE(\"Day \",CalendarDay-DATE(YEAR(CalendarDay),1,0)))","v":"Day 174"}]
[]
[null,null,{"$f":"DaysAndWeeks+DATE(CalendarYear,6,1)-WEEKDAY(DATE(CalendarYear,6,1),(WeekStart=\"MON\")+1)+29","v":"2018-06-24"},"2018-06-25","2018-06-26","2018-06-27","2018-06-28","2018-06-29","2018-06-30"]
[null,null,{"$f":"IF(WEEKDAY(CalendarDay)=WeekStartValue,CONCATENATE(\"Week \",WEEKNUM(CalendarDay),\"/Day \",CalendarDay-DATE(YEAR(CalendarDay),1,0)),CONCATENATE(\"Day \",CalendarDay-DATE(YEAR(CalendarDay),1,0)))","v":"Week 26/Day 175"},{"$f":"IF(WEEKDAY(CalendarDay)=WeekStartValue,CONCATENATE(\"Week \",WEEKNUM(CalendarDay),\"/Day \",CalendarDay-DATE(YEAR(CalendarDay),1,0)),CONCATENATE(\"Day \",CalendarDay-DATE(YEAR(CalendarDay),1,0)))","v":"Day 176"},{"$f":"IF(WEEKDAY(CalendarDay)=WeekStartValue,CONCATENATE(\"Week \",WEEKNUM(CalendarDay),\"/Day \",CalendarDay-DATE(YEAR(CalendarDay),1,0)),CONCATENATE(\"Day \",CalendarDay-DATE(YEAR(CalendarDay),1,0)))","v":"Day 177"},{"$f":"IF(WEEKDAY(CalendarDay)=WeekStartValue,CONCATENATE(\"Week \",WEEKNUM(CalendarDay),\"/Day \",CalendarDay-DATE(YEAR(CalendarDay),1,0)),CONCATENATE(\"Day \",CalendarDay-DATE(YEAR(CalendarDay),1,0)))","v":"Day 178"},{"$f":"IF(WEEKDAY(CalendarDay)=WeekStartValue,CONCATENATE(\"Week \",WEEKNUM(CalendarDay),\"/Day \",CalendarDay-DATE(YEAR(CalendarDay),1,0)),CONCATENATE(\"Day \",CalendarDay-DATE(YEAR(CalendarDay),1,0)))","v":"Day 179"},{"$f":"IF(WEEKDAY(CalendarDay)=WeekStartValue,CONCATENATE(\"Week \",WEEKNUM(CalendarDay),\"/Day \",CalendarDay-DATE(YEAR(CalendarDay),1,0)),CONCATENATE(\"Day \",CalendarDay-DATE(YEAR(CalendarDay),1,0)))","v":"Day 180"},{"$f":"IF(WEEKDAY(CalendarDay)=WeekStartValue,CONCATENATE(\"Week \",WEEKNUM(CalendarDay),\"/Day \",CalendarDay-DATE(YEAR(CalendarDay),1,0)),CONCATENATE(\"Day \",CalendarDay-DATE(YEAR(CalendarDay),1,0)))","v":"Day 181"}]
[{"$nulls":4},"NOTES"]
[]
[null,null,{"$f":"DaysAndWeeks+DATE(CalendarYear,6,1)-WEEKDAY(DATE(CalendarYear,6,1),(WeekStart=\"MON\")+1)+36","v":"2018-07-01"},"2018-07-02"]
[null,null,{"$f":"IF(WEEKDAY(CalendarDay)=WeekStartValue,CONCATENATE(\"Week \",WEEKNUM(CalendarDay),\"/Day \",CalendarDay-DATE(YEAR(CalendarDay),1,0)),CONCATENATE(\"Day \",CalendarDay-DATE(YEAR(CalendarDay),1,0)))","v":"Week 27/Day 182"},{"$f":"IF(WEEKDAY(CalendarDay)=WeekStartValue,CONCATENATE(\"Week \",WEEKNUM(CalendarDay),\"/Day \",CalendarDay-DATE(YEAR(CalendarDay),1,0)),CONCATENATE(\"Day \",CalendarDay-DATE(YEAR(CalendarDay),1,0)))","v":"Day 183"}]

{"sheet":"JUL","index":6,"n_rows":20,"n_cols":9,"rows_kept":20,"merged":[[16,2,17,2],[17,4,19,8]]}
[null,"JUL",{"$f":"UPPER(TEXT(WeekStart,\"ddd\"))","v":"SUN"},{"$f":"UPPER(TEXT(D3,\"aaa\"))","v":"MON"},"TUE","WED","THU","FRI","SAT"]
[null,{"$f":"CalendarYear","v":2018}]
[null,null,{"$f":"DaysAndWeeks+DATE(CalendarYear,7,1)-WEEKDAY(DATE(CalendarYear,7,1),(WeekStart=\"MON\")+1)+1","v":"2018-07-01"},"2018-07-02","2018-07-03","2018-07-04","2018-07-05","2018-07-06","2018-07-07"]
[null,null,{"$f":"IF(DAY(CalendarDay)=1,CONCATENATE(\"Week \",WEEKNUM(CalendarDay),\"/Day \",CalendarDay-DATE(YEAR(CalendarDay),1,0)),CONCATENATE(\"Day \",CalendarDay-DATE(YEAR(CalendarDay),1,0)))","v":"Week 27/Day 182"},"Day 183","Day 184","Day 185","Day 186","Day 187","Day 188"]
[]
[null,null,{"$f":"DaysAndWeeks+DATE(CalendarYear,7,1)-WEEKDAY(DATE(CalendarYear,7,1),(WeekStart=\"MON\")+1)+8","v":"2018-07-08"},"2018-07-09","2018-07-10","2018-07-11","2018-07-12","2018-07-13","2018-07-14"]
[null,null,{"$f":"IF(WEEKDAY(CalendarDay)=WeekStartValue,CONCATENATE(\"Week \",WEEKNUM(CalendarDay),\"/Day \",CalendarDay-DATE(YEAR(CalendarDay),1,0)),CONCATENATE(\"Day \",CalendarDay-DATE(YEAR(CalendarDay),1,0)))","v":"Week 28/Day 189"},{"$f":"IF(WEEKDAY(CalendarDay)=WeekStartValue,CONCATENATE(\"Week \",WEEKNUM(CalendarDay),\"/Day \",CalendarDay-DATE(YEAR(CalendarDay),1,0)),CONCATENATE(\"Day \",CalendarDay-DATE(YEAR(CalendarDay),1,0)))","v":"Day 190"},{"$f":"IF(WEEKDAY(CalendarDay)=WeekStartValue,CONCATENATE(\"Week \",WEEKNUM(CalendarDay),\"/Day \",CalendarDay-DATE(YEAR(CalendarDay),1,0)),CONCATENATE(\"Day \",CalendarDay-DATE(YEAR(CalendarDay),1,0)))","v":"Day 191"},{"$f":"IF(WEEKDAY(CalendarDay)=WeekStartValue,CONCATENATE(\"Week \",WEEKNUM(CalendarDay),\"/Day \",CalendarDay-DATE(YEAR(CalendarDay),1,0)),CONCATENATE(\"Day \",CalendarDay-DATE(YEAR(CalendarDay),1,0)))","v":"Day 192"},{"$f":"IF(WEEKDAY(CalendarDay)=WeekStartValue,CONCATENATE(\"Week \",WEEKNUM(CalendarDay),\"/Day \",CalendarDay-DATE(YEAR(CalendarDay),1,0)),CONCATENATE(\"Day \",CalendarDay-DATE(YEAR(CalendarDay),1,0)))","v":"Day 193"},{"$f":"IF(WEEKDAY(CalendarDay)=WeekStartValue,CONCATENATE(\"Week \",WEEKNUM(CalendarDay),\"/Day \",CalendarDay-DATE(YEAR(CalendarDay),1,0)),CONCATENATE(\"Day \",CalendarDay-DATE(YEAR(CalendarDay),1,0)))","v":"Day 194"},{"$f":"IF(WEEKDAY(CalendarDay)=WeekStartValue,CONCATENATE(\"Week \",WEEKNUM(CalendarDay),\"/Day \",CalendarDay-DATE(YEAR(CalendarDay),1,0)),CONCATENATE(\"Day \",CalendarDay-DATE(YEAR(CalendarDay),1,0)))","v":"Day 195"}]
[]
[null,null,{"$f":"DaysAndWeeks+DATE(CalendarYear,7,1)-WEEKDAY(DATE(CalendarYear,7,1),(WeekStart=\"MON\")+1)+15","v":"2018-07-15"},"2018-07-16","2018-07-17","2018-07-18","2018-07-19","2018-07-20","2018-07-21"]
[null,null,{"$f":"IF(WEEKDAY(CalendarDay)=WeekStartValue,CONCATENATE(\"Week \",WEEKNUM(CalendarDay),\"/Day \",CalendarDay-DATE(YEAR(CalendarDay),1,0)),CONCATENATE(\"Day \",CalendarDay-DATE(YEAR(CalendarDay),1,0)))","v":"Week 29/Day 196"},{"$f":"IF(WEEKDAY(CalendarDay)=WeekStartValue,CONCATENATE(\"Week \",WEEKNUM(CalendarDay),\"/Day \",CalendarDay-DATE(YEAR(CalendarDay),1,0)),CONCATENATE(\"Day \",CalendarDay-DATE(YEAR(CalendarDay),1,0)))","v":"Day 197"},{"$f":"IF(WEEKDAY(CalendarDay)=WeekStartValue,CONCATENATE(\"Week \",WEEKNUM(CalendarDay),\"/Day \",CalendarDay-DATE(YEAR(CalendarDay),1,0)),CONCATENATE(\"Day \",CalendarDay-DATE(YEAR(CalendarDay),1,0)))","v":"Day 198"},{"$f":"IF(WEEKDAY(CalendarDay)=WeekStartValue,CONCATENATE(\"Week \",WEEKNUM(CalendarDay),\"/Day \",CalendarDay-DATE(YEAR(CalendarDay),1,0)),CONCATENATE(\"Day \",CalendarDay-DATE(YEAR(CalendarDay),1,0)))","v":"Day 199"},{"$f":"IF(WEEKDAY(CalendarDay)=WeekStartValue,CONCATENATE(\"Week \",WEEKNUM(CalendarDay),\"/Day \",CalendarDay-DATE(YEAR(CalendarDay),1,0)),CONCATENATE(\"Day \",CalendarDay-DATE(YEAR(CalendarDay),1,0)))","v":"Day 200"},{"$f":"IF(WEEKDAY(CalendarDay)=WeekStartValue,CONCATENATE(\"Week \",WEEKNUM(CalendarDay),\"/Day \",CalendarDay-DATE(YEAR(CalendarDay),1,0)),CONCATENATE(\"Day \",CalendarDay-DATE(YEAR(CalendarDay),1,0)))","v":"Day 201"},{"$f":"IF(WEEKDAY(CalendarDay)=WeekStartValue,CONCATENATE(\"Week \",WEEKNUM(CalendarDay),\"/Day \",CalendarDay-DATE(YEAR(CalendarDay),1,0)),CONCATENATE(\"Day \",CalendarDay-DATE(YEAR(CalendarDay),1,0)))","v":"Day 202"}]
[]
[null,null,{"$f":"DaysAndWeeks+DATE(CalendarYear,7,1)-WEEKDAY(DATE(CalendarYear,7,1),(WeekStart=\"MON\")+1)+22","v":"2018-07-22"},"2018-07-23","2018-07-24","2018-07-25","2018-07-26","2018-07-27","2018-07-28"]
[null,null,{"$f":"IF(WEEKDAY(CalendarDay)=WeekStartValue,CONCATENATE(\"Week \",WEEKNUM(CalendarDay),\"/Day \",CalendarDay-DATE(YEAR(CalendarDay),1,0)),CONCATENATE(\"Day \",CalendarDay-DATE(YEAR(CalendarDay),1,0)))","v":"Week 30/Day 203"},{"$f":"IF(WEEKDAY(CalendarDay)=WeekStartValue,CONCATENATE(\"Week \",WEEKNUM(CalendarDay),\"/Day \",CalendarDay-DATE(YEAR(CalendarDay),1,0)),CONCATENATE(\"Day \",CalendarDay-DATE(YEAR(CalendarDay),1,0)))","v":"Day 204"},{"$f":"IF(WEEKDAY(CalendarDay)=WeekStartValue,CONCATENATE(\"Week \",WEEKNUM(CalendarDay),\"/Day \",CalendarDay-DATE(YEAR(CalendarDay),1,0)),CONCATENATE(\"Day \",CalendarDay-DATE(YEAR(CalendarDay),1,0)))","v":"Day 205"},{"$f":"IF(WEEKDAY(CalendarDay)=WeekStartValue,CONCATENATE(\"Week \",WEEKNUM(CalendarDay),\"/Day \",CalendarDay-DATE(YEAR(CalendarDay),1,0)),CONCATENATE(\"Day \",CalendarDay-DATE(YEAR(CalendarDay),1,0)))","v":"Day 206"},{"$f":"IF(WEEKDAY(CalendarDay)=WeekStartValue,CONCATENATE(\"Week \",WEEKNUM(CalendarDay),\"/Day \",CalendarDay-DATE(YEAR(CalendarDay),1,0)),CONCATENATE(\"Day \",CalendarDay-DATE(YEAR(CalendarDay),1,0)))","v":"Day 207"},{"$f":"IF(WEEKDAY(CalendarDay)=WeekStartValue,CONCATENATE(\"Week \",WEEKNUM(CalendarDay),\"/Day \",CalendarDay-DATE(YEAR(CalendarDay),1,0)),CONCATENATE(\"Day \",CalendarDay-DATE(YEAR(CalendarDay),1,0)))","v":"Day 208"},{"$f":"IF(WEEKDAY(CalendarDay)=WeekStartValue,CONCATENATE(\"Week \",WEEKNUM(CalendarDay),\"/Day \",CalendarDay-DATE(YEAR(CalendarDay),1,0)),CONCATENATE(\"Day \",CalendarDay-DATE(YEAR(CalendarDay),1,0)))","v":"Day 209"}]
[]
[null,null,{"$f":"DaysAndWeeks+DATE(CalendarYear,7,1)-WEEKDAY(DATE(CalendarYear,7,1),(WeekStart=\"MON\")+1)+29","v":"2018-07-29"},"2018-07-30","2018-07-31","2018-08-01","2018-08-02","2018-08-03","2018-08-04"]
[null,null,{"$f":"IF(WEEKDAY(CalendarDay)=WeekStartValue,CONCATENATE(\"Week \",WEEKNUM(CalendarDay),\"/Day \",CalendarDay-DATE(YEAR(CalendarDay),1,0)),CONCATENATE(\"Day \",CalendarDay-DATE(YEAR(CalendarDay),1,0)))","v":"Week 31/Day 210"},{"$f":"IF(WEEKDAY(CalendarDay)=WeekStartValue,CONCATENATE(\"Week \",WEEKNUM(CalendarDay),\"/Day \",CalendarDay-DATE(YEAR(CalendarDay),1,0)),CONCATENATE(\"Day \",CalendarDay-DATE(YEAR(CalendarDay),1,0)))","v":"Day 211"},{"$f":"IF(WEEKDAY(CalendarDay)=WeekStartValue,CONCATENATE(\"Week \",WEEKNUM(CalendarDay),\"/Day \",CalendarDay-DATE(YEAR(CalendarDay),1,0)),CONCATENATE(\"Day \",CalendarDay-DATE(YEAR(CalendarDay),1,0)))","v":"Day 212"},{"$f":"IF(WEEKDAY(CalendarDay)=WeekStartValue,CONCATENATE(\"Week \",WEEKNUM(CalendarDay),\"/Day \",CalendarDay-DATE(YEAR(CalendarDay),1,0)),CONCATENATE(\"Day \",CalendarDay-DATE(YEAR(CalendarDay),1,0)))","v":"Day 213"},{"$f":"IF(WEEKDAY(CalendarDay)=WeekStartValue,CONCATENATE(\"Week \",WEEKNUM(CalendarDay),\"/Day \",CalendarDay-DATE(YEAR(CalendarDay),1,0)),CONCATENATE(\"Day \",CalendarDay-DATE(YEAR(CalendarDay),1,0)))","v":"Day 214"},{"$f":"IF(WEEKDAY(CalendarDay)=WeekStartValue,CONCATENATE(\"Week \",WEEKNUM(CalendarDay),\"/Day \",CalendarDay-DATE(YEAR(CalendarDay),1,0)),CONCATENATE(\"Day \",CalendarDay-DATE(YEAR(CalendarDay),1,0)))","v":"Day 215"},{"$f":"IF(WEEKDAY(CalendarDay)=WeekStartValue,CONCATENATE(\"Week \",WEEKNUM(CalendarDay),\"/Day \",CalendarDay-DATE(YEAR(CalendarDay),1,0)),CONCATENATE(\"Day \",CalendarDay-DATE(YEAR(CalendarDay),1,0)))","v":"Day 216"}]
[{"$nulls":4},"NOTES"]
[]
[null,null,{"$f":"DaysAndWeeks+DATE(CalendarYear,7,1)-WEEKDAY(DATE(CalendarYear,7,1),(WeekStart=\"MON\")+1)+36","v":"2018-08-05"},"2018-08-06"]
[null,null,{"$f":"IF(WEEKDAY(CalendarDay)=WeekStartValue,CONCATENATE(\"Week \",WEEKNUM(CalendarDay),\"/Day \",CalendarDay-DATE(YEAR(CalendarDay),1,0)),CONCATENATE(\"Day \",CalendarDay-DATE(YEAR(CalendarDay),1,0)))","v":"Week 32/Day 217"},{"$f":"IF(WEEKDAY(CalendarDay)=WeekStartValue,CONCATENATE(\"Week \",WEEKNUM(CalendarDay),\"/Day \",CalendarDay-DATE(YEAR(CalendarDay),1,0)),CONCATENATE(\"Day \",CalendarDay-DATE(YEAR(CalendarDay),1,0)))","v":"Day 218"}]

{"sheet":"AUG","index":7,"n_rows":20,"n_cols":9,"rows_kept":20,"merged":[[16,2,17,2],[17,4,19,8]]}
[null,"AUG",{"$f":"UPPER(TEXT(WeekStart,\"ddd\"))","v":"SUN"},{"$f":"UPPER(TEXT(D3,\"aaa\"))","v":"MON"},"TUE","WED","THU","FRI","SAT"]
[null,{"$f":"CalendarYear","v":2018}]
[null,null,{"$f":"DaysAndWeeks+DATE(CalendarYear,8,1)-WEEKDAY(DATE(CalendarYear,8,1),(WeekStart=\"MON\")+1)+1","v":"2018-07-29"},"2018-07-30","2018-07-31","2018-08-01","2018-08-02","2018-08-03","2018-08-04"]
[null,null,{"$f":"IF(DAY(CalendarDay)=1,CONCATENATE(\"Week \",WEEKNUM(CalendarDay),\"/Day \",CalendarDay-DATE(YEAR(CalendarDay),1,0)),CONCATENATE(\"Day \",CalendarDay-DATE(YEAR(CalendarDay),1,0)))","v":"Day 210"},"Day 211","Day 212","Week 31/Day 213","Day 214","Day 215","Day 216"]
[]
[null,null,{"$f":"DaysAndWeeks+DATE(CalendarYear,8,1)-WEEKDAY(DATE(CalendarYear,8,1),(WeekStart=\"MON\")+1)+8","v":"2018-08-05"},"2018-08-06","2018-08-07","2018-08-08","2018-08-09","2018-08-10","2018-08-11"]
[null,null,{"$f":"IF(WEEKDAY(CalendarDay)=WeekStartValue,CONCATENATE(\"Week \",WEEKNUM(CalendarDay),\"/Day \",CalendarDay-DATE(YEAR(CalendarDay),1,0)),CONCATENATE(\"Day \",CalendarDay-DATE(YEAR(CalendarDay),1,0)))","v":"Week 32/Day 217"},{"$f":"IF(WEEKDAY(CalendarDay)=WeekStartValue,CONCATENATE(\"Week \",WEEKNUM(CalendarDay),\"/Day \",CalendarDay-DATE(YEAR(CalendarDay),1,0)),CONCATENATE(\"Day \",CalendarDay-DATE(YEAR(CalendarDay),1,0)))","v":"Day 218"},{"$f":"IF(WEEKDAY(CalendarDay)=WeekStartValue,CONCATENATE(\"Week \",WEEKNUM(CalendarDay),\"/Day \",CalendarDay-DATE(YEAR(CalendarDay),1,0)),CONCATENATE(\"Day \",CalendarDay-DATE(YEAR(CalendarDay),1,0)))","v":"Day 219"},{"$f":"IF(WEEKDAY(CalendarDay)=WeekStartValue,CONCATENATE(\"Week \",WEEKNUM(CalendarDay),\"/Day \",CalendarDay-DATE(YEAR(CalendarDay),1,0)),CONCATENATE(\"Day \",CalendarDay-DATE(YEAR(CalendarDay),1,0)))","v":"Day 220"},{"$f":"IF(WEEKDAY(CalendarDay)=WeekStartValue,CONCATENATE(\"Week \",WEEKNUM(CalendarDay),\"/Day \",CalendarDay-DATE(YEAR(CalendarDay),1,0)),CONCATENATE(\"Day \",CalendarDay-DATE(YEAR(CalendarDay),1,0)))","v":"Day 221"},{"$f":"IF(WEEKDAY(CalendarDay)=WeekStartValue,CONCATENATE(\"Week \",WEEKNUM(CalendarDay),\"/Day \",CalendarDay-DATE(YEAR(CalendarDay),1,0)),CONCATENATE(\"Day \",CalendarDay-DATE(YEAR(CalendarDay),1,0)))","v":"Day 222"},{"$f":"IF(WEEKDAY(CalendarDay)=WeekStartValue,CONCATENATE(\"Week \",WEEKNUM(CalendarDay),\"/Day \",CalendarDay-DATE(YEAR(CalendarDay),1,0)),CONCATENATE(\"Day \",CalendarDay-DATE(YEAR(CalendarDay),1,0)))","v":"Day 223"}]
[]
[null,null,{"$f":"DaysAndWeeks+DATE(CalendarYear,8,1)-WEEKDAY(DATE(CalendarYear,8,1),(WeekStart=\"MON\")+1)+15","v":"2018-08-12"},"2018-08-13","2018-08-14","2018-08-15","2018-08-16","2018-08-17","2018-08-18"]
[null,null,{"$f":"IF(WEEKDAY(CalendarDay)=WeekStartValue,CONCATENATE(\"Week \",WEEKNUM(CalendarDay),\"/Day \",CalendarDay-DATE(YEAR(CalendarDay),1,0)),CONCATENATE(\"Day \",CalendarDay-DATE(YEAR(CalendarDay),1,0)))","v":"Week 33/Day 224"},{"$f":"IF(WEEKDAY(CalendarDay)=WeekStartValue,CONCATENATE(\"Week \",WEEKNUM(CalendarDay),\"/Day \",CalendarDay-DATE(YEAR(CalendarDay),1,0)),CONCATENATE(\"Day \",CalendarDay-DATE(YEAR(CalendarDay),1,0)))","v":"Day 225"},{"$f":"IF(WEEKDAY(CalendarDay)=WeekStartValue,CONCATENATE(\"Week \",WEEKNUM(CalendarDay),\"/Day \",CalendarDay-DATE(YEAR(CalendarDay),1,0)),CONCATENATE(\"Day \",CalendarDay-DATE(YEAR(CalendarDay),1,0)))","v":"Day 226"},{"$f":"IF(WEEKDAY(CalendarDay)=WeekStartValue,CONCATENATE(\"Week \",WEEKNUM(CalendarDay),\"/Day \",CalendarDay-DATE(YEAR(CalendarDay),1,0)),CONCATENATE(\"Day \",CalendarDay-DATE(YEAR(CalendarDay),1,0)))","v":"Day 227"},{"$f":"IF(WEEKDAY(CalendarDay)=WeekStartValue,CONCATENATE(\"Week \",WEEKNUM(CalendarDay),\"/Day \",CalendarDay-DATE(YEAR(CalendarDay),1,0)),CONCATENATE(\"Day \",CalendarDay-DATE(YEAR(CalendarDay),1,0)))","v":"Day 228"},{"$f":"IF(WEEKDAY(CalendarDay)=WeekStartValue,CONCATENATE(\"Week \",WEEKNUM(CalendarDay),\"/Day \",CalendarDay-DATE(YEAR(CalendarDay),1,0)),CONCATENATE(\"Day \",CalendarDay-DATE(YEAR(CalendarDay),1,0)))","v":"Day 229"},{"$f":"IF(WEEKDAY(CalendarDay)=WeekStartValue,CONCATENATE(\"Week \",WEEKNUM(CalendarDay),\"/Day \",CalendarDay-DATE(YEAR(CalendarDay),1,0)),CONCATENATE(\"Day \",CalendarDay-DATE(YEAR(CalendarDay),1,0)))","v":"Day 230"}]
[]
[null,null,{"$f":"DaysAndWeeks+DATE(CalendarYear,8,1)-WEEKDAY(DATE(CalendarYear,8,1),(WeekStart=\"MON\")+1)+22","v":"2018-08-19"},"2018-08-20","2018-08-21","2018-08-22","2018-08-23","2018-08-24","2018-08-25"]
[null,null,{"$f":"IF(WEEKDAY(CalendarDay)=WeekStartValue,CONCATENATE(\"Week \",WEEKNUM(CalendarDay),\"/Day \",CalendarDay-DATE(YEAR(CalendarDay),1,0)),CONCATENATE(\"Day \",CalendarDay-DATE(YEAR(CalendarDay),1,0)))","v":"Week 34/Day 231"},{"$f":"IF(WEEKDAY(CalendarDay)=WeekStartValue,CONCATENATE(\"Week \",WEEKNUM(CalendarDay),\"/Day \",CalendarDay-DATE(YEAR(CalendarDay),1,0)),CONCATENATE(\"Day \",CalendarDay-DATE(YEAR(CalendarDay),1,0)))","v":"Day 232"},{"$f":"IF(WEEKDAY(CalendarDay)=WeekStartValue,CONCATENATE(\"Week \",WEEKNUM(CalendarDay),\"/Day \",CalendarDay-DATE(YEAR(CalendarDay),1,0)),CONCATENATE(\"Day \",CalendarDay-DATE(YEAR(CalendarDay),1,0)))","v":"Day 233"},{"$f":"IF(WEEKDAY(CalendarDay)=WeekStartValue,CONCATENATE(\"Week \",WEEKNUM(CalendarDay),\"/Day \",CalendarDay-DATE(YEAR(CalendarDay),1,0)),CONCATENATE(\"Day \",CalendarDay-DATE(YEAR(CalendarDay),1,0)))","v":"Day 234"},{"$f":"IF(WEEKDAY(CalendarDay)=WeekStartValue,CONCATENATE(\"Week \",WEEKNUM(CalendarDay),\"/Day \",CalendarDay-DATE(YEAR(CalendarDay),1,0)),CONCATENATE(\"Day \",CalendarDay-DATE(YEAR(CalendarDay),1,0)))","v":"Day 235"},{"$f":"IF(WEEKDAY(CalendarDay)=WeekStartValue,CONCATENATE(\"Week \",WEEKNUM(CalendarDay),\"/Day \",CalendarDay-DATE(YEAR(CalendarDay),1,0)),CONCATENATE(\"Day \",CalendarDay-DATE(YEAR(CalendarDay),1,0)))","v":"Day 236"},{"$f":"IF(WEEKDAY(CalendarDay)=WeekStartValue,CONCATENATE(\"Week \",WEEKNUM(CalendarDay),\"/Day \",CalendarDay-DATE(YEAR(CalendarDay),1,0)),CONCATENATE(\"Day \",CalendarDay-DATE(YEAR(CalendarDay),1,0)))","v":"Day 237"}]
[]
[null,null,{"$f":"DaysAndWeeks+DATE(CalendarYear,8,1)-WEEKDAY(DATE(CalendarYear,8,1),(WeekStart=\"MON\")+1)+29","v":"2018-08-26"},"2018-08-27","2018-08-28","2018-08-29","2018-08-30","2018-08-31","2018-09-01"]
[null,null,{"$f":"IF(WEEKDAY(CalendarDay)=WeekStartValue,CONCATENATE(\"Week \",WEEKNUM(CalendarDay),\"/Day \",CalendarDay-DATE(YEAR(CalendarDay),1,0)),CONCATENATE(\"Day \",CalendarDay-DATE(YEAR(CalendarDay),1,0)))","v":"Week 35/Day 238"},{"$f":"IF(WEEKDAY(CalendarDay)=WeekStartValue,CONCATENATE(\"Week \",WEEKNUM(CalendarDay),\"/Day \",CalendarDay-DATE(YEAR(CalendarDay),1,0)),CONCATENATE(\"Day \",CalendarDay-DATE(YEAR(CalendarDay),1,0)))","v":"Day 239"},{"$f":"IF(WEEKDAY(CalendarDay)=WeekStartValue,CONCATENATE(\"Week \",WEEKNUM(CalendarDay),\"/Day \",CalendarDay-DATE(YEAR(CalendarDay),1,0)),CONCATENATE(\"Day \",CalendarDay-DATE(YEAR(CalendarDay),1,0)))","v":"Day 240"},{"$f":"IF(WEEKDAY(CalendarDay)=WeekStartValue,CONCATENATE(\"Week \",WEEKNUM(CalendarDay),\"/Day \",CalendarDay-DATE(YEAR(CalendarDay),1,0)),CONCATENATE(\"Day \",CalendarDay-DATE(YEAR(CalendarDay),1,0)))","v":"Day 241"},{"$f":"IF(WEEKDAY(CalendarDay)=WeekStartValue,CONCATENATE(\"Week \",WEEKNUM(CalendarDay),\"/Day \",CalendarDay-DATE(YEAR(CalendarDay),1,0)),CONCATENATE(\"Day \",CalendarDay-DATE(YEAR(CalendarDay),1,0)))","v":"Day 242"},{"$f":"IF(WEEKDAY(CalendarDay)=WeekStartValue,CONCATENATE(\"Week \",WEEKNUM(CalendarDay),\"/Day \",CalendarDay-DATE(YEAR(CalendarDay),1,0)),CONCATENATE(\"Day \",CalendarDay-DATE(YEAR(CalendarDay),1,0)))","v":"Day 243"},{"$f":"IF(WEEKDAY(CalendarDay)=WeekStartValue,CONCATENATE(\"Week \",WEEKNUM(CalendarDay),\"/Day \",CalendarDay-DATE(YEAR(CalendarDay),1,0)),CONCATENATE(\"Day \",CalendarDay-DATE(YEAR(CalendarDay),1,0)))","v":"Day 244"}]
[{"$nulls":4},"NOTES"]
[]
[null,null,{"$f":"DaysAndWeeks+DATE(CalendarYear,8,1)-WEEKDAY(DATE(CalendarYear,8,1),(WeekStart=\"MON\")+1)+36","v":"2018-09-02"},"2018-09-03"]
[null,null,{"$f":"IF(WEEKDAY(CalendarDay)=WeekStartValue,CONCATENATE(\"Week \",WEEKNUM(CalendarDay),\"/Day \",CalendarDay-DATE(YEAR(CalendarDay),1,0)),CONCATENATE(\"Day \",CalendarDay-DATE(YEAR(CalendarDay),1,0)))","v":"Week 36/Day 245"},{"$f":"IF(WEEKDAY(CalendarDay)=WeekStartValue,CONCATENATE(\"Week \",WEEKNUM(CalendarDay),\"/Day \",CalendarDay-DATE(YEAR(CalendarDay),1,0)),CONCATENATE(\"Day \",CalendarDay-DATE(YEAR(CalendarDay),1,0)))","v":"Day 246"}]

{"sheet":"SEP","index":8,"n_rows":20,"n_cols":9,"rows_kept":20,"merged":[[16,2,17,2],[17,4,19,8]]}
[null,"SEP",{"$f":"UPPER(TEXT(WeekStart,\"ddd\"))","v":"SUN"},{"$f":"UPPER(TEXT(D3,\"aaa\"))","v":"MON"},"TUE","WED","THU","FRI","SAT"]
[null,{"$f":"CalendarYear","v":2018}]
[null,null,{"$f":"DaysAndWeeks+DATE(CalendarYear,9,1)-WEEKDAY(DATE(CalendarYear,9,1),(WeekStart=\"MON\")+1)+1","v":"2018-08-26"},"2018-08-27","2018-08-28","2018-08-29","2018-08-30","2018-08-31","2018-09-01"]
[null,null,{"$f":"IF(DAY(CalendarDay)=1,CONCATENATE(\"Week \",WEEKNUM(CalendarDay),\"/Day \",CalendarDay-DATE(YEAR(CalendarDay),1,0)),CONCATENATE(\"Day \",CalendarDay-DATE(YEAR(CalendarDay),1,0)))","v":"Day 238"},"Day 239","Day 240","Day 241","Day 242","Day 243","Week 35/Day 244"]
[]
[null,null,{"$f":"DaysAndWeeks+DATE(CalendarYear,9,1)-WEEKDAY(DATE(CalendarYear,9,1),(WeekStart=\"MON\")+1)+8","v":"2018-09-02"},"2018-09-03","2018-09-04","2018-09-05","2018-09-06","2018-09-07","2018-09-08"]
[null,null,{"$f":"IF(WEEKDAY(CalendarDay)=WeekStartValue,CONCATENATE(\"Week \",WEEKNUM(CalendarDay),\"/Day \",CalendarDay-DATE(YEAR(CalendarDay),1,0)),CONCATENATE(\"Day \",CalendarDay-DATE(YEAR(CalendarDay),1,0)))","v":"Week 36/Day 245"},{"$f":"IF(WEEKDAY(CalendarDay)=WeekStartValue,CONCATENATE(\"Week \",WEEKNUM(CalendarDay),\"/Day \",CalendarDay-DATE(YEAR(CalendarDay),1,0)),CONCATENATE(\"Day \",CalendarDay-DATE(YEAR(CalendarDay),1,0)))","v":"Day 246"},{"$f":"IF(WEEKDAY(CalendarDay)=WeekStartValue,CONCATENATE(\"Week \",WEEKNUM(CalendarDay),\"/Day \",CalendarDay-DATE(YEAR(CalendarDay),1,0)),CONCATENATE(\"Day \",CalendarDay-DATE(YEAR(CalendarDay),1,0)))","v":"Day 247"},{"$f":"IF(WEEKDAY(CalendarDay)=WeekStartValue,CONCATENATE(\"Week \",WEEKNUM(CalendarDay),\"/Day \",CalendarDay-DATE(YEAR(CalendarDay),1,0)),CONCATENATE(\"Day \",CalendarDay-DATE(YEAR(CalendarDay),1,0)))","v":"Day 248"},{"$f":"IF(WEEKDAY(CalendarDay)=WeekStartValue,CONCATENATE(\"Week \",WEEKNUM(CalendarDay),\"/Day \",CalendarDay-DATE(YEAR(CalendarDay),1,0)),CONCATENATE(\"Day \",CalendarDay-DATE(YEAR(CalendarDay),1,0)))","v":"Day 249"},{"$f":"IF(WEEKDAY(CalendarDay)=WeekStartValue,CONCATENATE(\"Week \",WEEKNUM(CalendarDay),\"/Day \",CalendarDay-DATE(YEAR(CalendarDay),1,0)),CONCATENATE(\"Day \",CalendarDay-DATE(YEAR(CalendarDay),1,0)))","v":"Day 250"},{"$f":"IF(WEEKDAY(CalendarDay)=WeekStartValue,CONCATENATE(\"Week \",WEEKNUM(CalendarDay),\"/Day \",CalendarDay-DATE(YEAR(CalendarDay),1,0)),CONCATENATE(\"Day \",CalendarDay-DATE(YEAR(CalendarDay),1,0)))","v":"Day 251"}]
[]
[null,null,{"$f":"DaysAndWeeks+DATE(CalendarYear,9,1)-WEEKDAY(DATE(CalendarYear,9,1),(WeekStart=\"MON\")+1)+15","v":"2018-09-09"},"2018-09-10","2018-09-11","2018-09-12","2018-09-13","2018-09-14","2018-09-15"]
[null,null,{"$f":"IF(WEEKDAY(CalendarDay)=WeekStartValue,CONCATENATE(\"Week \",WEEKNUM(CalendarDay),\"/Day \",CalendarDay-DATE(YEAR(CalendarDay),1,0)),CONCATENATE(\"Day \",CalendarDay-DATE(YEAR(CalendarDay),1,0)))","v":"Week 37/Day 252"},{"$f":"IF(WEEKDAY(CalendarDay)=WeekStartValue,CONCATENATE(\"Week \",WEEKNUM(CalendarDay),\"/Day \",CalendarDay-DATE(YEAR(CalendarDay),1,0)),CONCATENATE(\"Day \",CalendarDay-DATE(YEAR(CalendarDay),1,0)))","v":"Day 253"},{"$f":"IF(WEEKDAY(CalendarDay)=WeekStartValue,CONCATENATE(\"Week \",WEEKNUM(CalendarDay),\"/Day \",CalendarDay-DATE(YEAR(CalendarDay),1,0)),CONCATENATE(\"Day \",CalendarDay-DATE(YEAR(CalendarDay),1,0)))","v":"Day 254"},{"$f":"IF(WEEKDAY(CalendarDay)=WeekStartValue,CONCATENATE(\"Week \",WEEKNUM(CalendarDay),\"/Day \",CalendarDay-DATE(YEAR(CalendarDay),1,0)),CONCATENATE(\"Day \",CalendarDay-DATE(YEAR(CalendarDay),1,0)))","v":"Day 255"},{"$f":"IF(WEEKDAY(CalendarDay)=WeekStartValue,CONCATENATE(\"Week \",WEEKNUM(CalendarDay),\"/Day \",CalendarDay-DATE(YEAR(CalendarDay),1,0)),CONCATENATE(\"Day \",CalendarDay-DATE(YEAR(CalendarDay),1,0)))","v":"Day 256"},{"$f":"IF(WEEKDAY(CalendarDay)=WeekStartValue,CONCATENATE(\"Week \",WEEKNUM(CalendarDay),\"/Day \",CalendarDay-DATE(YEAR(CalendarDay),1,0)),CONCATENATE(\"Day \",CalendarDay-DATE(YEAR(CalendarDay),1,0)))","v":"Day 257"},{"$f":"IF(WEEKDAY(CalendarDay)=WeekStartValue,CONCATENATE(\"Week \",WEEKNUM(CalendarDay),\"/Day \",CalendarDay-DATE(YEAR(CalendarDay),1,0)),CONCATENATE(\"Day \",CalendarDay-DATE(YEAR(CalendarDay),1,0)))","v":"Day 258"}]
[]
[null,null,{"$f":"DaysAndWeeks+DATE(CalendarYear,9,1)-WEEKDAY(DATE(CalendarYear,9,1),(WeekStart=\"MON\")+1)+22","v":"2018-09-16"},"2018-09-17","2018-09-18","2018-09-19","2018-09-20","2018-09-21","2018-09-22"]
[null,null,{"$f":"IF(WEEKDAY(CalendarDay)=WeekStartValue,CONCATENATE(\"Week \",WEEKNUM(CalendarDay),\"/Day \",CalendarDay-DATE(YEAR(CalendarDay),1,0)),CONCATENATE(\"Day \",CalendarDay-DATE(YEAR(CalendarDay),1,0)))","v":"Week 38/Day 259"},{"$f":"IF(WEEKDAY(CalendarDay)=WeekStartValue,CONCATENATE(\"Week \",WEEKNUM(CalendarDay),\"/Day \",CalendarDay-DATE(YEAR(CalendarDay),1,0)),CONCATENATE(\"Day \",CalendarDay-DATE(YEAR(CalendarDay),1,0)))","v":"Day 260"},{"$f":"IF(WEEKDAY(CalendarDay)=WeekStartValue,CONCATENATE(\"Week \",WEEKNUM(CalendarDay),\"/Day \",CalendarDay-DATE(YEAR(CalendarDay),1,0)),CONCATENATE(\"Day \",CalendarDay-DATE(YEAR(CalendarDay),1,0)))","v":"Day 261"},{"$f":"IF(WEEKDAY(CalendarDay)=WeekStartValue,CONCATENATE(\"Week \",WEEKNUM(CalendarDay),\"/Day \",CalendarDay-DATE(YEAR(CalendarDay),1,0)),CONCATENATE(\"Day \",CalendarDay-DATE(YEAR(CalendarDay),1,0)))","v":"Day 262"},{"$f":"IF(WEEKDAY(CalendarDay)=WeekStartValue,CONCATENATE(\"Week \",WEEKNUM(CalendarDay),\"/Day \",CalendarDay-DATE(YEAR(CalendarDay),1,0)),CONCATENATE(\"Day \",CalendarDay-DATE(YEAR(CalendarDay),1,0)))","v":"Day 263"},{"$f":"IF(WEEKDAY(CalendarDay)=WeekStartValue,CONCATENATE(\"Week \",WEEKNUM(CalendarDay),\"/Day \",CalendarDay-DATE(YEAR(CalendarDay),1,0)),CONCATENATE(\"Day \",CalendarDay-DATE(YEAR(CalendarDay),1,0)))","v":"Day 264"},{"$f":"IF(WEEKDAY(CalendarDay)=WeekStartValue,CONCATENATE(\"Week \",WEEKNUM(CalendarDay),\"/Day \",CalendarDay-DATE(YEAR(CalendarDay),1,0)),CONCATENATE(\"Day \",CalendarDay-DATE(YEAR(CalendarDay),1,0)))","v":"Day 265"}]
[]
[null,null,{"$f":"DaysAndWeeks+DATE(CalendarYear,9,1)-WEEKDAY(DATE(CalendarYear,9,1),(WeekStart=\"MON\")+1)+29","v":"2018-09-23"},"2018-09-24","2018-09-25","2018-09-26","2018-09-27","2018-09-28","2018-09-29"]
[null,null,{"$f":"IF(WEEKDAY(CalendarDay)=WeekStartValue,CONCATENATE(\"Week \",WEEKNUM(CalendarDay),\"/Day \",CalendarDay-DATE(YEAR(CalendarDay),1,0)),CONCATENATE(\"Day \",CalendarDay-DATE(YEAR(CalendarDay),1,0)))","v":"Week 39/Day 266"},{"$f":"IF(WEEKDAY(CalendarDay)=WeekStartValue,CONCATENATE(\"Week \",WEEKNUM(CalendarDay),\"/Day \",CalendarDay-DATE(YEAR(CalendarDay),1,0)),CONCATENATE(\"Day \",CalendarDay-DATE(YEAR(CalendarDay),1,0)))","v":"Day 267"},{"$f":"IF(WEEKDAY(CalendarDay)=WeekStartValue,CONCATENATE(\"Week \",WEEKNUM(CalendarDay),\"/Day \",CalendarDay-DATE(YEAR(CalendarDay),1,0)),CONCATENATE(\"Day \",CalendarDay-DATE(YEAR(CalendarDay),1,0)))","v":"Day 268"},{"$f":"IF(WEEKDAY(CalendarDay)=WeekStartValue,CONCATENATE(\"Week \",WEEKNUM(CalendarDay),\"/Day \",CalendarDay-DATE(YEAR(CalendarDay),1,0)),CONCATENATE(\"Day \",CalendarDay-DATE(YEAR(CalendarDay),1,0)))","v":"Day 269"},{"$f":"IF(WEEKDAY(CalendarDay)=WeekStartValue,CONCATENATE(\"Week \",WEEKNUM(CalendarDay),\"/Day \",CalendarDay-DATE(YEAR(CalendarDay),1,0)),CONCATENATE(\"Day \",CalendarDay-DATE(YEAR(CalendarDay),1,0)))","v":"Day 270"},{"$f":"IF(WEEKDAY(CalendarDay)=WeekStartValue,CONCATENATE(\"Week \",WEEKNUM(CalendarDay),\"/Day \",CalendarDay-DATE(YEAR(CalendarDay),1,0)),CONCATENATE(\"Day \",CalendarDay-DATE(YEAR(CalendarDay),1,0)))","v":"Day 271"},{"$f":"IF(WEEKDAY(CalendarDay)=WeekStartValue,CONCATENATE(\"Week \",WEEKNUM(CalendarDay),\"/Day \",CalendarDay-DATE(YEAR(CalendarDay),1,0)),CONCATENATE(\"Day \",CalendarDay-DATE(YEAR(CalendarDay),1,0)))","v":"Day 272"}]
[{"$nulls":4},"NOTES"]
[]
[null,null,{"$f":"DaysAndWeeks+DATE(CalendarYear,9,1)-WEEKDAY(DATE(CalendarYear,9,1),(WeekStart=\"MON\")+1)+36","v":"2018-09-30"},"2018-10-01"]
[null,null,{"$f":"IF(WEEKDAY(CalendarDay)=WeekStartValue,CONCATENATE(\"Week \",WEEKNUM(CalendarDay),\"/Day \",CalendarDay-DATE(YEAR(CalendarDay),1,0)),CONCATENATE(\"Day \",CalendarDay-DATE(YEAR(CalendarDay),1,0)))","v":"Week 40/Day 273"},{"$f":"IF(WEEKDAY(CalendarDay)=WeekStartValue,CONCATENATE(\"Week \",WEEKNUM(CalendarDay),\"/Day \",CalendarDay-DATE(YEAR(CalendarDay),1,0)),CONCATENATE(\"Day \",CalendarDay-DATE(YEAR(CalendarDay),1,0)))","v":"Day 274"}]

{"sheet":"OCT","index":9,"n_rows":20,"n_cols":9,"rows_kept":20,"merged":[[16,2,17,2],[17,4,19,8]]}
[null,"OCT",{"$f":"UPPER(TEXT(WeekStart,\"ddd\"))","v":"SUN"},{"$f":"UPPER(TEXT(D3,\"aaa\"))","v":"MON"},"TUE","WED","THU","FRI","SAT"]
[null,{"$f":"CalendarYear","v":2018}]
[null,null,{"$f":"DaysAndWeeks+DATE(CalendarYear,10,1)-WEEKDAY(DATE(CalendarYear,10,1),(WeekStart=\"MON\")+1)+1","v":"2018-09-30"},"2018-10-01","2018-10-02","2018-10-03","2018-10-04","2018-10-05","2018-10-06"]
[null,null,{"$f":"IF(DAY(CalendarDay)=1,CONCATENATE(\"Week \",WEEKNUM(CalendarDay),\"/Day \",CalendarDay-DATE(YEAR(CalendarDay),1,0)),CONCATENATE(\"Day \",CalendarDay-DATE(YEAR(CalendarDay),1,0)))","v":"Day 273"},"Week 40/Day 274","Day 275","Day 276","Day 277","Day 278","Day 279"]
[]
[null,null,{"$f":"DaysAndWeeks+DATE(CalendarYear,10,1)-WEEKDAY(DATE(CalendarYear,10,1),(WeekStart=\"MON\")+1)+8","v":"2018-10-07"},"2018-10-08","2018-10-09","2018-10-10","2018-10-11","2018-10-12","2018-10-13"]
[null,null,{"$f":"IF(WEEKDAY(CalendarDay)=WeekStartValue,CONCATENATE(\"Week \",WEEKNUM(CalendarDay),\"/Day \",CalendarDay-DATE(YEAR(CalendarDay),1,0)),CONCATENATE(\"Day \",CalendarDay-DATE(YEAR(CalendarDay),1,0)))","v":"Week 41/Day 280"},{"$f":"IF(WEEKDAY(CalendarDay)=WeekStartValue,CONCATENATE(\"Week \",WEEKNUM(CalendarDay),\"/Day \",CalendarDay-DATE(YEAR(CalendarDay),1,0)),CONCATENATE(\"Day \",CalendarDay-DATE(YEAR(CalendarDay),1,0)))","v":"Day 281"},{"$f":"IF(WEEKDAY(CalendarDay)=WeekStartValue,CONCATENATE(\"Week \",WEEKNUM(CalendarDay),\"/Day \",CalendarDay-DATE(YEAR(CalendarDay),1,0)),CONCATENATE(\"Day \",CalendarDay-DATE(YEAR(CalendarDay),1,0)))","v":"Day 282"},{"$f":"IF(WEEKDAY(CalendarDay)=WeekStartValue,CONCATENATE(\"Week \",WEEKNUM(CalendarDay),\"/Day \",CalendarDay-DATE(YEAR(CalendarDay),1,0)),CONCATENATE(\"Day \",CalendarDay-DATE(YEAR(CalendarDay),1,0)))","v":"Day 283"},{"$f":"IF(WEEKDAY(CalendarDay)=WeekStartValue,CONCATENATE(\"Week \",WEEKNUM(CalendarDay),\"/Day \",CalendarDay-DATE(YEAR(CalendarDay),1,0)),CONCATENATE(\"Day \",CalendarDay-DATE(YEAR(CalendarDay),1,0)))","v":"Day 284"},{"$f":"IF(WEEKDAY(CalendarDay)=WeekStartValue,CONCATENATE(\"Week \",WEEKNUM(CalendarDay),\"/Day \",CalendarDay-DATE(YEAR(CalendarDay),1,0)),CONCATENATE(\"Day \",CalendarDay-DATE(YEAR(CalendarDay),1,0)))","v":"Day 285"},{"$f":"IF(WEEKDAY(CalendarDay)=WeekStartValue,CONCATENATE(\"Week \",WEEKNUM(CalendarDay),\"/Day \",CalendarDay-DATE(YEAR(CalendarDay),1,0)),CONCATENATE(\"Day \",CalendarDay-DATE(YEAR(CalendarDay),1,0)))","v":"Day 286"}]
[]
[null,null,{"$f":"DaysAndWeeks+DATE(CalendarYear,10,1)-WEEKDAY(DATE(CalendarYear,10,1),(WeekStart=\"MON\")+1)+15","v":"2018-10-14"},"2018-10-15","2018-10-16","2018-10-17","2018-10-18","2018-10-19","2018-10-20"]
[null,null,{"$f":"IF(WEEKDAY(CalendarDay)=WeekStartValue,CONCATENATE(\"Week \",WEEKNUM(CalendarDay),\"/Day \",CalendarDay-DATE(YEAR(CalendarDay),1,0)),CONCATENATE(\"Day \",CalendarDay-DATE(YEAR(CalendarDay),1,0)))","v":"Week 42/Day 287"},{"$f":"IF(WEEKDAY(CalendarDay)=WeekStartValue,CONCATENATE(\"Week \",WEEKNUM(CalendarDay),\"/Day \",CalendarDay-DATE(YEAR(CalendarDay),1,0)),CONCATENATE(\"Day \",CalendarDay-DATE(YEAR(CalendarDay),1,0)))","v":"Day 288"},{"$f":"IF(WEEKDAY(CalendarDay)=WeekStartValue,CONCATENATE(\"Week \",WEEKNUM(CalendarDay),\"/Day \",CalendarDay-DATE(YEAR(CalendarDay),1,0)),CONCATENATE(\"Day \",CalendarDay-DATE(YEAR(CalendarDay),1,0)))","v":"Day 289"},{"$f":"IF(WEEKDAY(CalendarDay)=WeekStartValue,CONCATENATE(\"Week \",WEEKNUM(CalendarDay),\"/Day \",CalendarDay-DATE(YEAR(CalendarDay),1,0)),CONCATENATE(\"Day \",CalendarDay-DATE(YEAR(CalendarDay),1,0)))","v":"Day 290"},{"$f":"IF(WEEKDAY(CalendarDay)=WeekStartValue,CONCATENATE(\"Week \",WEEKNUM(CalendarDay),\"/Day \",CalendarDay-DATE(YEAR(CalendarDay),1,0)),CONCATENATE(\"Day \",CalendarDay-DATE(YEAR(CalendarDay),1,0)))","v":"Day 291"},{"$f":"IF(WEEKDAY(CalendarDay)=WeekStartValue,CONCATENATE(\"Week \",WEEKNUM(CalendarDay),\"/Day \",CalendarDay-DATE(YEAR(CalendarDay),1,0)),CONCATENATE(\"Day \",CalendarDay-DATE(YEAR(CalendarDay),1,0)))","v":"Day 292"},{"$f":"IF(WEEKDAY(CalendarDay)=WeekStartValue,CONCATENATE(\"Week \",WEEKNUM(CalendarDay),\"/Day \",CalendarDay-DATE(YEAR(CalendarDay),1,0)),CONCATENATE(\"Day \",CalendarDay-DATE(YEAR(CalendarDay),1,0)))","v":"Day 293"}]
[]
[null,null,{"$f":"DaysAndWeeks+DATE(CalendarYear,10,1)-WEEKDAY(DATE(CalendarYear,10,1),(WeekStart=\"MON\")+1)+22","v":"2018-10-21"},"2018-10-22","2018-10-23","2018-10-24","2018-10-25","2018-10-26","2018-10-27"]
[null,null,{"$f":"IF(WEEKDAY(CalendarDay)=WeekStartValue,CONCATENATE(\"Week \",WEEKNUM(CalendarDay),\"/Day \",CalendarDay-DATE(YEAR(CalendarDay),1,0)),CONCATENATE(\"Day \",CalendarDay-DATE(YEAR(CalendarDay),1,0)))","v":"Week 43/Day 294"},{"$f":"IF(WEEKDAY(CalendarDay)=WeekStartValue,CONCATENATE(\"Week \",WEEKNUM(CalendarDay),\"/Day \",CalendarDay-DATE(YEAR(CalendarDay),1,0)),CONCATENATE(\"Day \",CalendarDay-DATE(YEAR(CalendarDay),1,0)))","v":"Day 295"},{"$f":"IF(WEEKDAY(CalendarDay)=WeekStartValue,CONCATENATE(\"Week \",WEEKNUM(CalendarDay),\"/Day \",CalendarDay-DATE(YEAR(CalendarDay),1,0)),CONCATENATE(\"Day \",CalendarDay-DATE(YEAR(CalendarDay),1,0)))","v":"Day 296"},{"$f":"IF(WEEKDAY(CalendarDay)=WeekStartValue,CONCATENATE(\"Week \",WEEKNUM(CalendarDay),\"/Day \",CalendarDay-DATE(YEAR(CalendarDay),1,0)),CONCATENATE(\"Day \",CalendarDay-DATE(YEAR(CalendarDay),1,0)))","v":"Day 297"},{"$f":"IF(WEEKDAY(CalendarDay)=WeekStartValue,CONCATENATE(\"Week \",WEEKNUM(CalendarDay),\"/Day \",CalendarDay-DATE(YEAR(CalendarDay),1,0)),CONCATENATE(\"Day \",CalendarDay-DATE(YEAR(CalendarDay),1,0)))","v":"Day 298"},{"$f":"IF(WEEKDAY(CalendarDay)=WeekStartValue,CONCATENATE(\"Week \",WEEKNUM(CalendarDay),\"/Day \",CalendarDay-DATE(YEAR(CalendarDay),1,0)),CONCATENATE(\"Day \",CalendarDay-DATE(YEAR(CalendarDay),1,0)))","v":"Day 299"},{"$f":"IF(WEEKDAY(CalendarDay)=WeekStartValue,CONCATENATE(\"Week \",WEEKNUM(CalendarDay),\"/Day \",CalendarDay-DATE(YEAR(CalendarDay),1,0)),CONCATENATE(\"Day \",CalendarDay-DATE(YEAR(CalendarDay),1,0)))","v":"Day 300"}]
[]
[null,null,{"$f":"DaysAndWeeks+DATE(CalendarYear,10,1)-WEEKDAY(DATE(CalendarYear,10,1),(WeekStart=\"MON\")+1)+29","v":"2018-10-28"},"2018-10-29","2018-10-30","2018-10-31","2018-11-01","2018-11-02","2018-11-03"]
[null,null,{"$f":"IF(WEEKDAY(CalendarDay)=WeekStartValue,CONCATENATE(\"Week \",WEEKNUM(CalendarDay),\"/Day \",CalendarDay-DATE(YEAR(CalendarDay),1,0)),CONCATENATE(\"Day \",CalendarDay-DATE(YEAR(CalendarDay),1,0)))","v":"Week 44/Day 301"},{"$f":"IF(WEEKDAY(CalendarDay)=WeekStartValue,CONCATENATE(\"Week \",WEEKNUM(CalendarDay),\"/Day \",CalendarDay-DATE(YEAR(CalendarDay),1,0)),CONCATENATE(\"Day \",CalendarDay-DATE(YEAR(CalendarDay),1,0)))","v":"Day 302"},{"$f":"IF(WEEKDAY(CalendarDay)=WeekStartValue,CONCATENATE(\"Week \",WEEKNUM(CalendarDay),\"/Day \",CalendarDay-DATE(YEAR(CalendarDay),1,0)),CONCATENATE(\"Day \",CalendarDay-DATE(YEAR(CalendarDay),1,0)))","v":"Day 303"},{"$f":"IF(WEEKDAY(CalendarDay)=WeekStartValue,CONCATENATE(\"Week \",WEEKNUM(CalendarDay),\"/Day \",CalendarDay-DATE(YEAR(CalendarDay),1,0)),CONCATENATE(\"Day \",CalendarDay-DATE(YEAR(CalendarDay),1,0)))","v":"Day 304"},{"$f":"IF(WEEKDAY(CalendarDay)=WeekStartValue,CONCATENATE(\"Week \",WEEKNUM(CalendarDay),\"/Day \",CalendarDay-DATE(YEAR(CalendarDay),1,0)),CONCATENATE(\"Day \",CalendarDay-DATE(YEAR(CalendarDay),1,0)))","v":"Day 305"},{"$f":"IF(WEEKDAY(CalendarDay)=WeekStartValue,CONCATENATE(\"Week \",WEEKNUM(CalendarDay),\"/Day \",CalendarDay-DATE(YEAR(CalendarDay),1,0)),CONCATENATE(\"Day \",CalendarDay-DATE(YEAR(CalendarDay),1,0)))","v":"Day 306"},{"$f":"IF(WEEKDAY(CalendarDay)=WeekStartValue,CONCATENATE(\"Week \",WEEKNUM(CalendarDay),\"/Day \",CalendarDay-DATE(YEAR(CalendarDay),1,0)),CONCATENATE(\"Day \",CalendarDay-DATE(YEAR(CalendarDay),1,0)))","v":"Day 307"}]
[{"$nulls":4},"NOTES"]
[]
[null,null,{"$f":"DaysAndWeeks+DATE(CalendarYear,10,1)-WEEKDAY(DATE(CalendarYear,10,1),(WeekStart=\"MON\")+1)+36","v":"2018-11-04"},"2018-11-05"]
[null,null,{"$f":"IF(WEEKDAY(CalendarDay)=WeekStartValue,CONCATENATE(\"Week \",WEEKNUM(CalendarDay),\"/Day \",CalendarDay-DATE(YEAR(CalendarDay),1,0)),CONCATENATE(\"Day \",CalendarDay-DATE(YEAR(CalendarDay),1,0)))","v":"Week 45/Day 308"},{"$f":"IF(WEEKDAY(CalendarDay)=WeekStartValue,CONCATENATE(\"Week \",WEEKNUM(CalendarDay),\"/Day \",CalendarDay-DATE(YEAR(CalendarDay),1,0)),CONCATENATE(\"Day \",CalendarDay-DATE(YEAR(CalendarDay),1,0)))","v":"Day 309"}]

{"sheet":"NOV","index":10,"n_rows":20,"n_cols":9,"rows_kept":20,"merged":[[16,2,17,2],[17,4,19,8]]}
[null,"NOV",{"$f":"UPPER(TEXT(WeekStart,\"ddd\"))","v":"SUN"},{"$f":"UPPER(TEXT(D3,\"aaa\"))","v":"MON"},"TUE","WED","THU","FRI","SAT"]
[null,{"$f":"CalendarYear","v":2018}]
[null,null,{"$f":"DaysAndWeeks+DATE(CalendarYear,11,1)-WEEKDAY(DATE(CalendarYear,11,1),(WeekStart=\"MON\")+1)+1","v":"2018-10-28"},"2018-10-29","2018-10-30","2018-10-31","2018-11-01","2018-11-02","2018-11-03"]
[null,null,{"$f":"IF(DAY(CalendarDay)=1,CONCATENATE(\"Week \",WEEKNUM(CalendarDay),\"/Day \",CalendarDay-DATE(YEAR(CalendarDay),1,0)),CONCATENATE(\"Day \",CalendarDay-DATE(YEAR(CalendarDay),1,0)))","v":"Day 301"},"Day 302","Day 303","Day 304","Week 44/Day 305","Day 306","Day 307"]
[]
[null,null,{"$f":"DaysAndWeeks+DATE(CalendarYear,11,1)-WEEKDAY(DATE(CalendarYear,11,1),(WeekStart=\"MON\")+1)+8","v":"2018-11-04"},"2018-11-05","2018-11-06","2018-11-07","2018-11-08","2018-11-09","2018-11-10"]
[null,null,{"$f":"IF(WEEKDAY(CalendarDay)=WeekStartValue,CONCATENATE(\"Week \",WEEKNUM(CalendarDay),\"/Day \",CalendarDay-DATE(YEAR(CalendarDay),1,0)),CONCATENATE(\"Day \",CalendarDay-DATE(YEAR(CalendarDay),1,0)))","v":"Week 45/Day 308"},{"$f":"IF(WEEKDAY(CalendarDay)=WeekStartValue,CONCATENATE(\"Week \",WEEKNUM(CalendarDay),\"/Day \",CalendarDay-DATE(YEAR(CalendarDay),1,0)),CONCATENATE(\"Day \",CalendarDay-DATE(YEAR(CalendarDay),1,0)))","v":"Day 309"},{"$f":"IF(WEEKDAY(CalendarDay)=WeekStartValue,CONCATENATE(\"Week \",WEEKNUM(CalendarDay),\"/Day \",CalendarDay-DATE(YEAR(CalendarDay),1,0)),CONCATENATE(\"Day \",CalendarDay-DATE(YEAR(CalendarDay),1,0)))","v":"Day 310"},{"$f":"IF(WEEKDAY(CalendarDay)=WeekStartValue,CONCATENATE(\"Week \",WEEKNUM(CalendarDay),\"/Day \",CalendarDay-DATE(YEAR(CalendarDay),1,0)),CONCATENATE(\"Day \",CalendarDay-DATE(YEAR(CalendarDay),1,0)))","v":"Day 311"},{"$f":"IF(WEEKDAY(CalendarDay)=WeekStartValue,CONCATENATE(\"Week \",WEEKNUM(CalendarDay),\"/Day \",CalendarDay-DATE(YEAR(CalendarDay),1,0)),CONCATENATE(\"Day \",CalendarDay-DATE(YEAR(CalendarDay),1,0)))","v":"Day 312"},{"$f":"IF(WEEKDAY(CalendarDay)=WeekStartValue,CONCATENATE(\"Week \",WEEKNUM(CalendarDay),\"/Day \",CalendarDay-DATE(YEAR(CalendarDay),1,0)),CONCATENATE(\"Day \",CalendarDay-DATE(YEAR(CalendarDay),1,0)))","v":"Day 313"},{"$f":"IF(WEEKDAY(CalendarDay)=WeekStartValue,CONCATENATE(\"Week \",WEEKNUM(CalendarDay),\"/Day \",CalendarDay-DATE(YEAR(CalendarDay),1,0)),CONCATENATE(\"Day \",CalendarDay-DATE(YEAR(CalendarDay),1,0)))","v":"Day 314"}]
[]
[null,null,{"$f":"DaysAndWeeks+DATE(CalendarYear,11,1)-WEEKDAY(DATE(CalendarYear,11,1),(WeekStart=\"MON\")+1)+15","v":"2018-11-11"},"2018-11-12","2018-11-13","2018-11-14","2018-11-15","2018-11-16","2018-11-17"]
[null,null,{"$f":"IF(WEEKDAY(CalendarDay)=WeekStartValue,CONCATENATE(\"Week \",WEEKNUM(CalendarDay),\"/Day \",CalendarDay-DATE(YEAR(CalendarDay),1,0)),CONCATENATE(\"Day \",CalendarDay-DATE(YEAR(CalendarDay),1,0)))","v":"Week 46/Day 315"},{"$f":"IF(WEEKDAY(CalendarDay)=WeekStartValue,CONCATENATE(\"Week \",WEEKNUM(CalendarDay),\"/Day \",CalendarDay-DATE(YEAR(CalendarDay),1,0)),CONCATENATE(\"Day \",CalendarDay-DATE(YEAR(CalendarDay),1,0)))","v":"Day 316"},{"$f":"IF(WEEKDAY(CalendarDay)=WeekStartValue,CONCATENATE(\"Week \",WEEKNUM(CalendarDay),\"/Day \",CalendarDay-DATE(YEAR(CalendarDay),1,0)),CONCATENATE(\"Day \",CalendarDay-DATE(YEAR(CalendarDay),1,0)))","v":"Day 317"},{"$f":"IF(WEEKDAY(CalendarDay)=WeekStartValue,CONCATENATE(\"Week \",WEEKNUM(CalendarDay),\"/Day \",CalendarDay-DATE(YEAR(CalendarDay),1,0)),CONCATENATE(\"Day \",CalendarDay-DATE(YEAR(CalendarDay),1,0)))","v":"Day 318"},{"$f":"IF(WEEKDAY(CalendarDay)=WeekStartValue,CONCATENATE(\"Week \",WEEKNUM(CalendarDay),\"/Day \",CalendarDay-DATE(YEAR(CalendarDay),1,0)),CONCATENATE(\"Day \",CalendarDay-DATE(YEAR(CalendarDay),1,0)))","v":"Day 319"},{"$f":"IF(WEEKDAY(CalendarDay)=WeekStartValue,CONCATENATE(\"Week \",WEEKNUM(CalendarDay),\"/Day \",CalendarDay-DATE(YEAR(CalendarDay),1,0)),CONCATENATE(\"Day \",CalendarDay-DATE(YEAR(CalendarDay),1,0)))","v":"Day 320"},{"$f":"IF(WEEKDAY(CalendarDay)=WeekStartValue,CONCATENATE(\"Week \",WEEKNUM(CalendarDay),\"/Day \",CalendarDay-DATE(YEAR(CalendarDay),1,0)),CONCATENATE(\"Day \",CalendarDay-DATE(YEAR(CalendarDay),1,0)))","v":"Day 321"}]
[]
[null,null,{"$f":"DaysAndWeeks+DATE(CalendarYear,11,1)-WEEKDAY(DATE(CalendarYear,11,1),(WeekStart=\"MON\")+1)+22","v":"2018-11-18"},"2018-11-19","2018-11-20","2018-11-21","2018-11-22","2018-11-23","2018-11-24"]
[null,null,{"$f":"IF(WEEKDAY(CalendarDay)=WeekStartValue,CONCATENATE(\"Week \",WEEKNUM(CalendarDay),\"/Day \",CalendarDay-DATE(YEAR(CalendarDay),1,0)),CONCATENATE(\"Day \",CalendarDay-DATE(YEAR(CalendarDay),1,0)))","v":"Week 47/Day 322"},{"$f":"IF(WEEKDAY(CalendarDay)=WeekStartValue,CONCATENATE(\"Week \",WEEKNUM(CalendarDay),\"/Day \",CalendarDay-DATE(YEAR(CalendarDay),1,0)),CONCATENATE(\"Day \",CalendarDay-DATE(YEAR(CalendarDay),1,0)))","v":"Day 323"},{"$f":"IF(WEEKDAY(CalendarDay)=WeekStartValue,CONCATENATE(\"Week \",WEEKNUM(CalendarDay),\"/Day \",CalendarDay-DATE(YEAR(CalendarDay),1,0)),CONCATENATE(\"Day \",CalendarDay-DATE(YEAR(CalendarDay),1,0)))","v":"Day 324"},{"$f":"IF(WEEKDAY(CalendarDay)=WeekStartValue,CONCATENATE(\"Week \",WEEKNUM(CalendarDay),\"/Day \",CalendarDay-DATE(YEAR(CalendarDay),1,0)),CONCATENATE(\"Day \",CalendarDay-DATE(YEAR(CalendarDay),1,0)))","v":"Day 325"},{"$f":"IF(WEEKDAY(CalendarDay)=WeekStartValue,CONCATENATE(\"Week \",WEEKNUM(CalendarDay),\"/Day \",CalendarDay-DATE(YEAR(CalendarDay),1,0)),CONCATENATE(\"Day \",CalendarDay-DATE(YEAR(CalendarDay),1,0)))","v":"Day 326"},{"$f":"IF(WEEKDAY(CalendarDay)=WeekStartValue,CONCATENATE(\"Week \",WEEKNUM(CalendarDay),\"/Day \",CalendarDay-DATE(YEAR(CalendarDay),1,0)),CONCATENATE(\"Day \",CalendarDay-DATE(YEAR(CalendarDay),1,0)))","v":"Day 327"},{"$f":"IF(WEEKDAY(CalendarDay)=WeekStartValue,CONCATENATE(\"Week \",WEEKNUM(CalendarDay),\"/Day \",CalendarDay-DATE(YEAR(CalendarDay),1,0)),CONCATENATE(\"Day \",CalendarDay-DATE(YEAR(CalendarDay),1,0)))","v":"Day 328"}]
[]
[null,null,{"$f":"DaysAndWeeks+DATE(CalendarYear,11,1)-WEEKDAY(DATE(CalendarYear,11,1),(WeekStart=\"MON\")+1)+29","v":"2018-11-25"},"2018-11-26","2018-11-27","2018-11-28","2018-11-29","2018-11-30","2018-12-01"]
[null,null,{"$f":"IF(WEEKDAY(CalendarDay)=WeekStartValue,CONCATENATE(\"Week \",WEEKNUM(CalendarDay),\"/Day \",CalendarDay-DATE(YEAR(CalendarDay),1,0)),CONCATENATE(\"Day \",CalendarDay-DATE(YEAR(CalendarDay),1,0)))","v":"Week 48/Day 329"},{"$f":"IF(WEEKDAY(CalendarDay)=WeekStartValue,CONCATENATE(\"Week \",WEEKNUM(CalendarDay),\"/Day \",CalendarDay-DATE(YEAR(CalendarDay),1,0)),CONCATENATE(\"Day \",CalendarDay-DATE(YEAR(CalendarDay),1,0)))","v":"Day 330"},{"$f":"IF(WEEKDAY(CalendarDay)=WeekStartValue,CONCATENATE(\"Week \",WEEKNUM(CalendarDay),\"/Day \",CalendarDay-DATE(YEAR(CalendarDay),1,0)),CONCATENATE(\"Day \",CalendarDay-DATE(YEAR(CalendarDay),1,0)))","v":"Day 331"},{"$f":"IF(WEEKDAY(CalendarDay)=WeekStartValue,CONCATENATE(\"Week \",WEEKNUM(CalendarDay),\"/Day \",CalendarDay-DATE(YEAR(CalendarDay),1,0)),CONCATENATE(\"Day \",CalendarDay-DATE(YEAR(CalendarDay),1,0)))","v":"Day 332"},{"$f":"IF(WEEKDAY(CalendarDay)=WeekStartValue,CONCATENATE(\"Week \",WEEKNUM(CalendarDay),\"/Day \",CalendarDay-DATE(YEAR(CalendarDay),1,0)),CONCATENATE(\"Day \",CalendarDay-DATE(YEAR(CalendarDay),1,0)))","v":"Day 333"},{"$f":"IF(WEEKDAY(CalendarDay)=WeekStartValue,CONCATENATE(\"Week \",WEEKNUM(CalendarDay),\"/Day \",CalendarDay-DATE(YEAR(CalendarDay),1,0)),CONCATENATE(\"Day \",CalendarDay-DATE(YEAR(CalendarDay),1,0)))","v":"Day 334"},{"$f":"IF(WEEKDAY(CalendarDay)=WeekStartValue,CONCATENATE(\"Week \",WEEKNUM(CalendarDay),\"/Day \",CalendarDay-DATE(YEAR(CalendarDay),1,0)),CONCATENATE(\"Day \",CalendarDay-DATE(YEAR(CalendarDay),1,0)))","v":"Day 335"}]
[{"$nulls":4},"NOTES"]
[]
[null,null,{"$f":"DaysAndWeeks+DATE(CalendarYear,11,1)-WEEKDAY(DATE(CalendarYear,11,1),(WeekStart=\"MON\")+1)+36","v":"2018-12-02"},"2018-12-03"]
[null,null,{"$f":"IF(WEEKDAY(CalendarDay)=WeekStartValue,CONCATENATE(\"Week \",WEEKNUM(CalendarDay),\"/Day \",CalendarDay-DATE(YEAR(CalendarDay),1,0)),CONCATENATE(\"Day \",CalendarDay-DATE(YEAR(CalendarDay),1,0)))","v":"Week 49/Day 336"},{"$f":"IF(WEEKDAY(CalendarDay)=WeekStartValue,CONCATENATE(\"Week \",WEEKNUM(CalendarDay),\"/Day \",CalendarDay-DATE(YEAR(CalendarDay),1,0)),CONCATENATE(\"Day \",CalendarDay-DATE(YEAR(CalendarDay),1,0)))","v":"Day 337"}]

{"sheet":"DEC","index":11,"n_rows":20,"n_cols":9,"rows_kept":20,"merged":[[16,2,17,2],[17,4,19,8]]}
[null,"DEC",{"$f":"UPPER(TEXT(WeekStart,\"ddd\"))","v":"SUN"},{"$f":"UPPER(TEXT(D3,\"aaa\"))","v":"MON"},"TUE","WED","THU","FRI","SAT"]
[null,{"$f":"CalendarYear","v":2018}]
[null,null,{"$f":"DaysAndWeeks+DATE(CalendarYear,12,1)-WEEKDAY(DATE(CalendarYear,12,1),(WeekStart=\"MON\")+1)+1","v":"2018-11-25"},"2018-11-26","2018-11-27","2018-11-28","2018-11-29","2018-11-30","2018-12-01"]
[null,null,{"$f":"IF(DAY(CalendarDay)=1,CONCATENATE(\"Week \",WEEKNUM(CalendarDay),\"/Day \",CalendarDay-DATE(YEAR(CalendarDay),1,0)),CONCATENATE(\"Day \",CalendarDay-DATE(YEAR(CalendarDay),1,0)))","v":"Day 329"},"Day 330","Day 331","Day 332","Day 333","Day 334","Week 48/Day 335"]
[]
[null,null,{"$f":"DaysAndWeeks+DATE(CalendarYear,12,1)-WEEKDAY(DATE(CalendarYear,12,1),(WeekStart=\"MON\")+1)+8","v":"2018-12-02"},"2018-12-03","2018-12-04","2018-12-05","2018-12-06","2018-12-07","2018-12-08"]
[null,null,{"$f":"IF(WEEKDAY(CalendarDay)=WeekStartValue,CONCATENATE(\"Week \",WEEKNUM(CalendarDay),\"/Day \",CalendarDay-DATE(YEAR(CalendarDay),1,0)),CONCATENATE(\"Day \",CalendarDay-DATE(YEAR(CalendarDay),1,0)))","v":"Week 49/Day 336"},{"$f":"IF(WEEKDAY(CalendarDay)=WeekStartValue,CONCATENATE(\"Week \",WEEKNUM(CalendarDay),\"/Day \",CalendarDay-DATE(YEAR(CalendarDay),1,0)),CONCATENATE(\"Day \",CalendarDay-DATE(YEAR(CalendarDay),1,0)))","v":"Day 337"},{"$f":"IF(WEEKDAY(CalendarDay)=WeekStartValue,CONCATENATE(\"Week \",WEEKNUM(CalendarDay),\"/Day \",CalendarDay-DATE(YEAR(CalendarDay),1,0)),CONCATENATE(\"Day \",CalendarDay-DATE(YEAR(CalendarDay),1,0)))","v":"Day 338"},{"$f":"IF(WEEKDAY(CalendarDay)=WeekStartValue,CONCATENATE(\"Week \",WEEKNUM(CalendarDay),\"/Day \",CalendarDay-DATE(YEAR(CalendarDay),1,0)),CONCATENATE(\"Day \",CalendarDay-DATE(YEAR(CalendarDay),1,0)))","v":"Day 339"},{"$f":"IF(WEEKDAY(CalendarDay)=WeekStartValue,CONCATENATE(\"Week \",WEEKNUM(CalendarDay),\"/Day \",CalendarDay-DATE(YEAR(CalendarDay),1,0)),CONCATENATE(\"Day \",CalendarDay-DATE(YEAR(CalendarDay),1,0)))","v":"Day 340"},{"$f":"IF(WEEKDAY(CalendarDay)=WeekStartValue,CONCATENATE(\"Week \",WEEKNUM(CalendarDay),\"/Day \",CalendarDay-DATE(YEAR(CalendarDay),1,0)),CONCATENATE(\"Day \",CalendarDay-DATE(YEAR(CalendarDay),1,0)))","v":"Day 341"},{"$f":"IF(WEEKDAY(CalendarDay)=WeekStartValue,CONCATENATE(\"Week \",WEEKNUM(CalendarDay),\"/Day \",CalendarDay-DATE(YEAR(CalendarDay),1,0)),CONCATENATE(\"Day \",CalendarDay-DATE(YEAR(CalendarDay),1,0)))","v":"Day 342"}]
[]
[null,null,{"$f":"DaysAndWeeks+DATE(CalendarYear,12,1)-WEEKDAY(DATE(CalendarYear,12,1),(WeekStart=\"MON\")+1)+15","v":"2018-12-09"},"2018-12-10","2018-12-11","2018-12-12","2018-12-13","2018-12-14","2018-12-15"]
[null,null,{"$f":"IF(WEEKDAY(CalendarDay)=WeekStartValue,CONCATENATE(\"Week \",WEEKNUM(CalendarDay),\"/Day \",CalendarDay-DATE(YEAR(CalendarDay),1,0)),CONCATENATE(\"Day \",CalendarDay-DATE(YEAR(CalendarDay),1,0)))","v":"Week 50/Day 343"},{"$f":"IF(WEEKDAY(CalendarDay)=WeekStartValue,CONCATENATE(\"Week \",WEEKNUM(CalendarDay),\"/Day \",CalendarDay-DATE(YEAR(CalendarDay),1,0)),CONCATENATE(\"Day \",CalendarDay-DATE(YEAR(CalendarDay),1,0)))","v":"Day 344"},{"$f":"IF(WEEKDAY(CalendarDay)=WeekStartValue,CONCATENATE(\"Week \",WEEKNUM(CalendarDay),\"/Day \",CalendarDay-DATE(YEAR(CalendarDay),1,0)),CONCATENATE(\"Day \",CalendarDay-DATE(YEAR(CalendarDay),1,0)))","v":"Day 345"},{"$f":"IF(WEEKDAY(CalendarDay)=WeekStartValue,CONCATENATE(\"Week \",WEEKNUM(CalendarDay),\"/Day \",CalendarDay-DATE(YEAR(CalendarDay),1,0)),CONCATENATE(\"Day \",CalendarDay-DATE(YEAR(CalendarDay),1,0)))","v":"Day 346"},{"$f":"IF(WEEKDAY(CalendarDay)=WeekStartValue,CONCATENATE(\"Week \",WEEKNUM(CalendarDay),\"/Day \",CalendarDay-DATE(YEAR(CalendarDay),1,0)),CONCATENATE(\"Day \",CalendarDay-DATE(YEAR(CalendarDay),1,0)))","v":"Day 347"},{"$f":"IF(WEEKDAY(CalendarDay)=WeekStartValue,CONCATENATE(\"Week \",WEEKNUM(CalendarDay),\"/Day \",CalendarDay-DATE(YEAR(CalendarDay),1,0)),CONCATENATE(\"Day \",CalendarDay-DATE(YEAR(CalendarDay),1,0)))","v":"Day 348"},{"$f":"IF(WEEKDAY(CalendarDay)=WeekStartValue,CONCATENATE(\"Week \",WEEKNUM(CalendarDay),\"/Day \",CalendarDay-DATE(YEAR(CalendarDay),1,0)),CONCATENATE(\"Day \",CalendarDay-DATE(YEAR(CalendarDay),1,0)))","v":"Day 349"}]
[]
[null,null,{"$f":"DaysAndWeeks+DATE(CalendarYear,12,1)-WEEKDAY(DATE(CalendarYear,12,1),(WeekStart=\"MON\")+1)+22","v":"2018-12-16"},"2018-12-17","2018-12-18","2018-12-19","2018-12-20","2018-12-21","2018-12-22"]
[null,null,{"$f":"IF(WEEKDAY(CalendarDay)=WeekStartValue,CONCATENATE(\"Week \",WEEKNUM(CalendarDay),\"/Day \",CalendarDay-DATE(YEAR(CalendarDay),1,0)),CONCATENATE(\"Day \",CalendarDay-DATE(YEAR(CalendarDay),1,0)))","v":"Week 51/Day 350"},{"$f":"IF(WEEKDAY(CalendarDay)=WeekStartValue,CONCATENATE(\"Week \",WEEKNUM(CalendarDay),\"/Day \",CalendarDay-DATE(YEAR(CalendarDay),1,0)),CONCATENATE(\"Day \",CalendarDay-DATE(YEAR(CalendarDay),1,0)))","v":"Day 351"},{"$f":"IF(WEEKDAY(CalendarDay)=WeekStartValue,CONCATENATE(\"Week \",WEEKNUM(CalendarDay),\"/Day \",CalendarDay-DATE(YEAR(CalendarDay),1,0)),CONCATENATE(\"Day \",CalendarDay-DATE(YEAR(CalendarDay),1,0)))","v":"Day 352"},{"$f":"IF(WEEKDAY(CalendarDay)=WeekStartValue,CONCATENATE(\"Week \",WEEKNUM(CalendarDay),\"/Day \",CalendarDay-DATE(YEAR(CalendarDay),1,0)),CONCATENATE(\"Day \",CalendarDay-DATE(YEAR(CalendarDay),1,0)))","v":"Day 353"},{"$f":"IF(WEEKDAY(CalendarDay)=WeekStartValue,CONCATENATE(\"Week \",WEEKNUM(CalendarDay),\"/Day \",CalendarDay-DATE(YEAR(CalendarDay),1,0)),CONCATENATE(\"Day \",CalendarDay-DATE(YEAR(CalendarDay),1,0)))","v":"Day 354"},{"$f":"IF(WEEKDAY(CalendarDay)=WeekStartValue,CONCATENATE(\"Week \",WEEKNUM(CalendarDay),\"/Day \",CalendarDay-DATE(YEAR(CalendarDay),1,0)),CONCATENATE(\"Day \",CalendarDay-DATE(YEAR(CalendarDay),1,0)))","v":"Day 355"},{"$f":"IF(WEEKDAY(CalendarDay)=WeekStartValue,CONCATENATE(\"Week \",WEEKNUM(CalendarDay),\"/Day \",CalendarDay-DATE(YEAR(CalendarDay),1,0)),CONCATENATE(\"Day \",CalendarDay-DATE(YEAR(CalendarDay),1,0)))","v":"Day 356"}]
[]
[null,null,{"$f":"DaysAndWeeks+DATE(CalendarYear,12,1)-WEEKDAY(DATE(CalendarYear,12,1),(WeekStart=\"MON\")+1)+29","v":"2018-12-23"},"2018-12-24","2018-12-25","2018-12-26","2018-12-27","2018-12-28","2018-12-29"]
[null,null,{"$f":"IF(WEEKDAY(CalendarDay)=WeekStartValue,CONCATENATE(\"Week \",WEEKNUM(CalendarDay),\"/Day \",CalendarDay-DATE(YEAR(CalendarDay),1,0)),CONCATENATE(\"Day \",CalendarDay-DATE(YEAR(CalendarDay),1,0)))","v":"Week 52/Day 357"},{"$f":"IF(WEEKDAY(CalendarDay)=WeekStartValue,CONCATENATE(\"Week \",WEEKNUM(CalendarDay),\"/Day \",CalendarDay-DATE(YEAR(CalendarDay),1,0)),CONCATENATE(\"Day \",CalendarDay-DATE(YEAR(CalendarDay),1,0)))","v":"Day 358"},{"$f":"IF(WEEKDAY(CalendarDay)=WeekStartValue,CONCATENATE(\"Week \",WEEKNUM(CalendarDay),\"/Day \",CalendarDay-DATE(YEAR(CalendarDay),1,0)),CONCATENATE(\"Day \",CalendarDay-DATE(YEAR(CalendarDay),1,0)))","v":"Day 359"},{"$f":"IF(WEEKDAY(CalendarDay)=WeekStartValue,CONCATENATE(\"Week \",WEEKNUM(CalendarDay),\"/Day \",CalendarDay-DATE(YEAR(CalendarDay),1,0)),CONCATENATE(\"Day \",CalendarDay-DATE(YEAR(CalendarDay),1,0)))","v":"Day 360"},{"$f":"IF(WEEKDAY(CalendarDay)=WeekStartValue,CONCATENATE(\"Week \",WEEKNUM(CalendarDay),\"/Day \",CalendarDay-DATE(YEAR(CalendarDay),1,0)),CONCATENATE(\"Day \",CalendarDay-DATE(YEAR(CalendarDay),1,0)))","v":"Day 361"},{"$f":"IF(WEEKDAY(CalendarDay)=WeekStartValue,CONCATENATE(\"Week \",WEEKNUM(CalendarDay),\"/Day \",CalendarDay-DATE(YEAR(CalendarDay),1,0)),CONCATENATE(\"Day \",CalendarDay-DATE(YEAR(CalendarDay),1,0)))","v":"Day 362"},{"$f":"IF(WEEKDAY(CalendarDay)=WeekStartValue,CONCATENATE(\"Week \",WEEKNUM(CalendarDay),\"/Day \",CalendarDay-DATE(YEAR(CalendarDay),1,0)),CONCATENATE(\"Day \",CalendarDay-DATE(YEAR(CalendarDay),1,0)))","v":"Day 363"}]
[{"$nulls":4},"NOTES"]
[]
[null,null,{"$f":"DaysAndWeeks+DATE(CalendarYear,12,1)-WEEKDAY(DATE(CalendarYear,12,1),(WeekStart=\"MON\")+1)+36","v":"2018-12-30"},"2018-12-31"]
[null,null,{"$f":"IF(WEEKDAY(CalendarDay)=WeekStartValue,CONCATENATE(\"Week \",WEEKNUM(CalendarDay),\"/Day \",CalendarDay-DATE(YEAR(CalendarDay),1,0)),CONCATENATE(\"Day \",CalendarDay-DATE(YEAR(CalendarDay),1,0)))","v":"Week 53/Day 364"},{"$f":"IF(WEEKDAY(CalendarDay)=WeekStartValue,CONCATENATE(\"Week \",WEEKNUM(CalendarDay),\"/Day \",CalendarDay-DATE(YEAR(CalendarDay),1,0)),CONCATENATE(\"Day \",CalendarDay-DATE(YEAR(CalendarDay),1,0)))","v":"Day 365"}]